Department Family,Entity,Date,Expense Type,Expense Area,Supplier,Transaction Number,AP Amount,Description,Supplier Postcode
Department of Health,NHS Sheffield CCG,5/31/2020,C&M-PMS Contract Value,PRC DELEGATED CO-COMMISSIONING,ABBEY LANE SURGERY,32288921,"23,648.83",PRC DELEGATED CO-COMMISSIONING,S8 0BJ
Department of Health,NHS Sheffield CCG,5/31/2020,C&M-PMS PCN DES Participation,PRC DELEGATED CO-COMMISSIONING,ABBEY LANE SURGERY,32288921,449.67,PRC DELEGATED CO-COMMISSIONING,S8 0BJ
Department of Health,NHS Sheffield CCG,5/31/2020,C&M-PMS Prem Notional Rent,PRC DELEGATED CO-COMMISSIONING,ABBEY LANE SURGERY,32288921,"2,122.92",PRC DELEGATED CO-COMMISSIONING,S8 0BJ
Department of Health,NHS Sheffield CCG,5/31/2020,C&M-PMS QOF Aspiration,PRC DELEGATED CO-COMMISSIONING,ABBEY LANE SURGERY,32288921,"2,636.98",PRC DELEGATED CO-COMMISSIONING,S8 0BJ
Department of Health,NHS Sheffield CCG,5/31/2020,Clinical&Medical-Independent Sector,MENTAL HEALTH SERVICES - OTHER,ADVANCED DIGITAL INSTITUTE,32547177,"44,550.00",MENTAL HEALTH SERVICES - OTHER,BD18 3LA
Department of Health,NHS Sheffield CCG,5/31/2020,External Consultancy Fees,CLINICAL LEADS,AURORA WELLBEING CENTRE,32264028,"25,453.29",Cancer Alliance - Personalised Care and Support Funding for Aurora Q2 2020/21,S80 2BP
Department of Health,NHS Sheffield CCG,5/31/2020,C&M-PMS Contract Value,PRC DELEGATED CO-COMMISSIONING,AVENUE MEDICAL CENTRE SHEFFIELD,32288919,"54,503.08",PRC DELEGATED CO-COMMISSIONING,S8 7FH
Department of Health,NHS Sheffield CCG,5/31/2020,C&M-PMS Cost of Drugs -Prescribing,LOCAL ENHANCED SERVICES,AVENUE MEDICAL CENTRE SHEFFIELD,32288919,61.17,LOCAL ENHANCED SERVICES,S8 7FH
Department of Health,NHS Sheffield CCG,5/31/2020,C&M-PMS GP Statutory Levy,PRC DELEGATED CO-COMMISSIONING,AVENUE MEDICAL CENTRE SHEFFIELD,32288919,0.91,PRC DELEGATED CO-COMMISSIONING,S8 7FH
Department of Health,NHS Sheffield CCG,5/31/2020,C&M-PMS PCN DES Participation,PRC DELEGATED CO-COMMISSIONING,AVENUE MEDICAL CENTRE SHEFFIELD,32288919,"1,049.66",PRC DELEGATED CO-COMMISSIONING,S8 7FH
Department of Health,NHS Sheffield CCG,5/31/2020,C&M-PMS Prem Notional Rent,PRC DELEGATED CO-COMMISSIONING,AVENUE MEDICAL CENTRE SHEFFIELD,32288919,"5,546.67",PRC DELEGATED CO-COMMISSIONING,S8 7FH
Department of Health,NHS Sheffield CCG,5/31/2020,C&M-PMS Prem Rates,PRC DELEGATED CO-COMMISSIONING,AVENUE MEDICAL CENTRE SHEFFIELD,32288919,"1,285.00",PRC DELEGATED CO-COMMISSIONING,S8 7FH
Department of Health,NHS Sheffield CCG,5/31/2020,C&M-PMS Prem Water Rates,PRC DELEGATED CO-COMMISSIONING,AVENUE MEDICAL CENTRE SHEFFIELD,32288919,157.36,PRC DELEGATED CO-COMMISSIONING,S8 7FH
Department of Health,NHS Sheffield CCG,5/31/2020,C&M-PMS Prof fees Prescribing,PRC DELEGATED CO-COMMISSIONING,AVENUE MEDICAL CENTRE SHEFFIELD,32288919,3.00,PRC DELEGATED CO-COMMISSIONING,S8 7FH
Department of Health,NHS Sheffield CCG,5/31/2020,C&M-PMS QOF Aspiration,PRC DELEGATED CO-COMMISSIONING,AVENUE MEDICAL CENTRE SHEFFIELD,32288919,"5,847.72",PRC DELEGATED CO-COMMISSIONING,S8 7FH
Department of Health,NHS Sheffield CCG,5/31/2020,Hcare Srv Rec Fdtn Trust-Contract Baseline,ACUTE COMMISSIONING,BARNSLEY HOSPITAL NHS FOUNDATION TRUST,32303327,"131,016.71",ACUTE COMMISSIONING,S75 2EP
Department of Health,NHS Sheffield CCG,5/31/2020,C&M-PMS Contract Value,PRC DELEGATED CO-COMMISSIONING,BARNSLEY ROAD SURGERY,32288923,"20,816.75",PRC DELEGATED CO-COMMISSIONING,S5 0QJ
Department of Health,NHS Sheffield CCG,5/31/2020,C&M-PMS GP Statutory Levy,PRC DELEGATED CO-COMMISSIONING,BARNSLEY ROAD SURGERY,32288923,0.32,PRC DELEGATED CO-COMMISSIONING,S5 0QJ
Department of Health,NHS Sheffield CCG,5/31/2020,C&M-PMS PCN DES Participation,PRC DELEGATED CO-COMMISSIONING,BARNSLEY ROAD SURGERY,32288923,393.76,PRC DELEGATED CO-COMMISSIONING,S5 0QJ
Department of Health,NHS Sheffield CCG,5/31/2020,C&M-PMS Prem Notional Rent,PRC DELEGATED CO-COMMISSIONING,BARNSLEY ROAD SURGERY,32288923,"2,652.17",PRC DELEGATED CO-COMMISSIONING,S5 0QJ
Department of Health,NHS Sheffield CCG,5/31/2020,C&M-PMS Prem Water Rates,PRC DELEGATED CO-COMMISSIONING,BARNSLEY ROAD SURGERY,32288923,66.34,PRC DELEGATED CO-COMMISSIONING,S5 0QJ
Department of Health,NHS Sheffield CCG,5/31/2020,C&M-PMS QOF Aspiration,PRC DELEGATED CO-COMMISSIONING,BARNSLEY ROAD SURGERY,32288923,"2,377.21",PRC DELEGATED CO-COMMISSIONING,S5 0QJ
Department of Health,NHS Sheffield CCG,5/31/2020,C&M-GMS DES Minor Surgery,PRC DELEGATED CO-COMMISSIONING,BASLOW ROAD & SHOREHAM STREET SURGERIES,32473556,"3,165.00",PRC DELEGATED CO-COMMISSIONING,S17 4DR
Department of Health,NHS Sheffield CCG,5/31/2020,C&M-GMS Global Sum,PRC DELEGATED CO-COMMISSIONING,BASLOW ROAD & SHOREHAM STREET SURGERIES,32473556,"99,954.48",PRC DELEGATED CO-COMMISSIONING,S17 4DR
Department of Health,NHS Sheffield CCG,5/31/2020,C&M-GMS PCN DES Participation,PRC DELEGATED CO-COMMISSIONING,BASLOW ROAD & SHOREHAM STREET SURGERIES,32473556,"1,984.37",PRC DELEGATED CO-COMMISSIONING,S17 4DR
Department of Health,NHS Sheffield CCG,5/31/2020,C&M-GMS PCO Locum Sickness,PRC DELEGATED CO-COMMISSIONING,BASLOW ROAD & SHOREHAM STREET SURGERIES,32473556,"1,751.52",PRC DELEGATED CO-COMMISSIONING,S17 4DR
Department of Health,NHS Sheffield CCG,5/31/2020,C&M-GMS Prem Notional Rent,PRC DELEGATED CO-COMMISSIONING,BASLOW ROAD & SHOREHAM STREET SURGERIES,32473556,"8,222.71",PRC DELEGATED CO-COMMISSIONING,S17 4DR
Department of Health,NHS Sheffield CCG,5/31/2020,C&M-GMS Prem Rates,PRC DELEGATED CO-COMMISSIONING,BASLOW ROAD & SHOREHAM STREET SURGERIES,32473556,"2,619.00",PRC DELEGATED CO-COMMISSIONING,S17 4DR
Department of Health,NHS Sheffield CCG,5/31/2020,C&M-GMS Prem Water Rates,PRC DELEGATED CO-COMMISSIONING,BASLOW ROAD & SHOREHAM STREET SURGERIES,32473556,236.24,PRC DELEGATED CO-COMMISSIONING,S17 4DR
Department of Health,NHS Sheffield CCG,5/31/2020,C&M-GMS QOF Aspiration,PRC DELEGATED CO-COMMISSIONING,BASLOW ROAD & SHOREHAM STREET SURGERIES,32473556,"10,278.96",PRC DELEGATED CO-COMMISSIONING,S17 4DR
Department of Health,NHS Sheffield CCG,5/31/2020,Cont Care-Physical Disab (65+),CHC ADULT FULLY FUNDED,BC SHEFFIELD LTD,32533518,"38,229.75",https://nww.einvoice-prod.sbs.nhs.uk:8179/invoicepdf/ed183602-1b07-54da-ab08-b44312d20bfe,S9 2TJ
Department of Health,NHS Sheffield CCG,5/31/2020,C&M-PMS GP Statutory Levy,PRC DELEGATED CO-COMMISSIONING,BIRLEY HEALTH CENTRE,32288924,-299.74,PRC DELEGATED CO-COMMISSIONING,S12 3BP
Department of Health,NHS Sheffield CCG,5/31/2020,C&M-PMS Out of Hours Opt Outs,PRC DELEGATED CO-COMMISSIONING,BIRLEY HEALTH CENTRE,32288924,"-3,007.00",PRC DELEGATED CO-COMMISSIONING,S12 3BP
Department of Health,NHS Sheffield CCG,5/31/2020,C&M-PMS Voluntary Levy,PRC DELEGATED CO-COMMISSIONING,BIRLEY HEALTH CENTRE,32288924,-42.82,PRC DELEGATED CO-COMMISSIONING,S12 3BP
Department of Health,NHS Sheffield CCG,5/31/2020,C&M-PMS Contract Value,PRC DELEGATED CO-COMMISSIONING,BIRLEY HEALTH CENTRE,32288925,"64,197.92",PRC DELEGATED CO-COMMISSIONING,S12 3BP
Department of Health,NHS Sheffield CCG,5/31/2020,C&M-PMS GP Statutory Levy,PRC DELEGATED CO-COMMISSIONING,BIRLEY HEALTH CENTRE,32288925,0.56,PRC DELEGATED CO-COMMISSIONING,S12 3BP
Department of Health,NHS Sheffield CCG,5/31/2020,C&M-PMS PCN DES Participation,PRC DELEGATED CO-COMMISSIONING,BIRLEY HEALTH CENTRE,32288925,"1,222.93",PRC DELEGATED CO-COMMISSIONING,S12 3BP
Department of Health,NHS Sheffield CCG,5/31/2020,C&M-PMS PCO Other,PRC DELEGATED CO-COMMISSIONING,BIRLEY HEALTH CENTRE,32288925,"1,079.60",PRC DELEGATED CO-COMMISSIONING,S12 3BP
Department of Health,NHS Sheffield CCG,5/31/2020,C&M-PMS Prem Notional Rent,PRC DELEGATED CO-COMMISSIONING,BIRLEY HEALTH CENTRE,32288925,"7,600.58",PRC DELEGATED CO-COMMISSIONING,S12 3BP
Department of Health,NHS Sheffield CCG,5/31/2020,C&M-PMS Prem Rates,PRC DELEGATED CO-COMMISSIONING,BIRLEY HEALTH CENTRE,32288925,"3,390.00",PRC DELEGATED CO-COMMISSIONING,S12 3BP
Department of Health,NHS Sheffield CCG,5/31/2020,C&M-PMS QOF Aspiration,PRC DELEGATED CO-COMMISSIONING,BIRLEY HEALTH CENTRE,32288925,"7,981.39",PRC DELEGATED CO-COMMISSIONING,S12 3BP
Department of Health,NHS Sheffield CCG,5/31/2020,Cont Care-Physical Disab (<65),CHC ADULT FULLY FUNDED,BONDCARE,32426468,"33,463.25",CHC SCHEDULE MAY 2020 - Chatsworth Grange Nursing Home,NW4 4EF
Department of Health,NHS Sheffield CCG,5/31/2020,C&M-GMS Cost of Drugs -Prescribing,LOCAL ENHANCED SERVICES,BROOMHILL SURGERY,32473563,"2,319.10",LOCAL ENHANCED SERVICES,S10 5BU
Department of Health,NHS Sheffield CCG,5/31/2020,C&M-GMS DES Minor Surgery,PRC DELEGATED CO-COMMISSIONING,BROOMHILL SURGERY,32473563,350.00,PRC DELEGATED CO-COMMISSIONING,S10 5BU
Department of Health,NHS Sheffield CCG,5/31/2020,C&M-GMS Global Sum,PRC DELEGATED CO-COMMISSIONING,BROOMHILL SURGERY,32473563,"67,364.54",PRC DELEGATED CO-COMMISSIONING,S10 5BU
Department of Health,NHS Sheffield CCG,5/31/2020,C&M-GMS PCN DES Participation,PRC DELEGATED CO-COMMISSIONING,BROOMHILL SURGERY,32473563,"1,329.60",PRC DELEGATED CO-COMMISSIONING,S10 5BU
Department of Health,NHS Sheffield CCG,5/31/2020,C&M-GMS PCO Other,PRC DELEGATED CO-COMMISSIONING,BROOMHILL SURGERY,32473563,"6,144.00",PRC DELEGATED CO-COMMISSIONING,S10 5BU
Department of Health,NHS Sheffield CCG,5/31/2020,C&M-GMS Prem Cost Rent,PRC DELEGATED CO-COMMISSIONING,BROOMHILL SURGERY,32473563,"2,975.42",PRC DELEGATED CO-COMMISSIONING,S10 5BU
Department of Health,NHS Sheffield CCG,5/31/2020,C&M-GMS Prem Notional Rent,PRC DELEGATED CO-COMMISSIONING,BROOMHILL SURGERY,32473563,"2,612.50",PRC DELEGATED CO-COMMISSIONING,S10 5BU
Department of Health,NHS Sheffield CCG,5/31/2020,C&M-GMS Prof Fees Prescribing,PRC DELEGATED CO-COMMISSIONING,BROOMHILL SURGERY,32473563,132.42,PRC DELEGATED CO-COMMISSIONING,S10 5BU
Department of Health,NHS Sheffield CCG,5/31/2020,C&M-GMS QOF Aspiration,PRC DELEGATED CO-COMMISSIONING,BROOMHILL SURGERY,32473563,"6,211.39",PRC DELEGATED CO-COMMISSIONING,S10 5BU
Department of Health,NHS Sheffield CCG,5/31/2020,C&M-GMS DES Minor Surgery,PRC DELEGATED CO-COMMISSIONING,BUCHANAN ROAD SURGERY,32473559,200.00,PRC DELEGATED CO-COMMISSIONING,S5 8AL
Department of Health,NHS Sheffield CCG,5/31/2020,C&M-GMS Global Sum,PRC DELEGATED CO-COMMISSIONING,BUCHANAN ROAD SURGERY,32473559,"37,057.14",PRC DELEGATED CO-COMMISSIONING,S5 8AL
Department of Health,NHS Sheffield CCG,5/31/2020,C&M-GMS PCN DES Participation,PRC DELEGATED CO-COMMISSIONING,BUCHANAN ROAD SURGERY,32473559,734.72,PRC DELEGATED CO-COMMISSIONING,S5 8AL
Department of Health,NHS Sheffield CCG,5/31/2020,C&M-GMS Prem Notional Rent,PRC DELEGATED CO-COMMISSIONING,BUCHANAN ROAD SURGERY,32473559,"2,595.83",PRC DELEGATED CO-COMMISSIONING,S5 8AL
Department of Health,NHS Sheffield CCG,5/31/2020,C&M-GMS QOF Aspiration,PRC DELEGATED CO-COMMISSIONING,BUCHANAN ROAD SURGERY,32473559,"4,303.24",PRC DELEGATED CO-COMMISSIONING,S5 8AL
Department of Health,NHS Sheffield CCG,5/31/2020,C&M-PMS Contract Value,PRC DELEGATED CO-COMMISSIONING,BURNCROSS SURGERY,32288927,"120,455.25",PRC DELEGATED CO-COMMISSIONING,S35 1RN
Department of Health,NHS Sheffield CCG,5/31/2020,C&M-PMS PCN DES Participation,PRC DELEGATED CO-COMMISSIONING,BURNCROSS SURGERY,32288927,"2,282.33",PRC DELEGATED CO-COMMISSIONING,S35 1RN
Department of Health,NHS Sheffield CCG,5/31/2020,C&M-PMS Prem Notional Rent,PRC DELEGATED CO-COMMISSIONING,BURNCROSS SURGERY,32288927,"14,058.33",PRC DELEGATED CO-COMMISSIONING,S35 1RN
Department of Health,NHS Sheffield CCG,5/31/2020,C&M-PMS QOF Aspiration,PRC DELEGATED CO-COMMISSIONING,BURNCROSS SURGERY,32288927,"15,732.40",PRC DELEGATED CO-COMMISSIONING,S35 1RN
Department of Health,NHS Sheffield CCG,5/31/2020,C&M-PMS Contract Value,PRC DELEGATED CO-COMMISSIONING,BURNGREAVE SURGERY,32288929,"57,368.92",PRC DELEGATED CO-COMMISSIONING,S3 9DA
Department of Health,NHS Sheffield CCG,5/31/2020,C&M-PMS PCN DES Participation,PRC DELEGATED CO-COMMISSIONING,BURNGREAVE SURGERY,32288929,"1,090.16",PRC DELEGATED CO-COMMISSIONING,S3 9DA
Department of Health,NHS Sheffield CCG,5/31/2020,C&M-PMS PCO Other,PRC DELEGATED CO-COMMISSIONING,BURNGREAVE SURGERY,32288929,"4,433.00",PRC DELEGATED CO-COMMISSIONING,S3 9DA
Department of Health,NHS Sheffield CCG,5/31/2020,C&M-PMS Prem Notional Rent,PRC DELEGATED CO-COMMISSIONING,BURNGREAVE SURGERY,32288929,"6,622.92",PRC DELEGATED CO-COMMISSIONING,S3 9DA
Department of Health,NHS Sheffield CCG,5/31/2020,C&M-PMS Prem Rates,PRC DELEGATED CO-COMMISSIONING,BURNGREAVE SURGERY,32288929,"4,604.86",PRC DELEGATED CO-COMMISSIONING,S3 9DA
Department of Health,NHS Sheffield CCG,5/31/2020,C&M-PMS Prem Water Rates,PRC DELEGATED CO-COMMISSIONING,BURNGREAVE SURGERY,32288929,639.95,PRC DELEGATED CO-COMMISSIONING,S3 9DA
Department of Health,NHS Sheffield CCG,5/31/2020,C&M-PMS QOF Aspiration,PRC DELEGATED CO-COMMISSIONING,BURNGREAVE SURGERY,32288929,"5,288.96",PRC DELEGATED CO-COMMISSIONING,S3 9DA
Department of Health,NHS Sheffield CCG,5/31/2020,C&M-GMS GP Statutory Levy,PRC DELEGATED CO-COMMISSIONING,CARTERKNOWLE & DORE MEDICAL PRACTICE,32473568,-440.83,PRC DELEGATED CO-COMMISSIONING,S7 2DW
Department of Health,NHS Sheffield CCG,5/31/2020,C&M-GMS Cost of Drugs -Prescribing,LOCAL ENHANCED SERVICES,CARTERKNOWLE & DORE MEDICAL PRACTICE,32473569,"3,420.68",LOCAL ENHANCED SERVICES,S7 2DW
Department of Health,NHS Sheffield CCG,5/31/2020,C&M-GMS DES Minor Surgery,PRC DELEGATED CO-COMMISSIONING,CARTERKNOWLE & DORE MEDICAL PRACTICE,32473569,"2,650.00",PRC DELEGATED CO-COMMISSIONING,S7 2DW
Department of Health,NHS Sheffield CCG,5/31/2020,C&M-GMS Global Sum,PRC DELEGATED CO-COMMISSIONING,CARTERKNOWLE & DORE MEDICAL PRACTICE,32473569,"89,071.05",PRC DELEGATED CO-COMMISSIONING,S7 2DW
Department of Health,NHS Sheffield CCG,5/31/2020,C&M-GMS PCN DES Participation,PRC DELEGATED CO-COMMISSIONING,CARTERKNOWLE & DORE MEDICAL PRACTICE,32473569,"1,740.63",PRC DELEGATED CO-COMMISSIONING,S7 2DW
Department of Health,NHS Sheffield CCG,5/31/2020,C&M-GMS Prem Notional Rent,PRC DELEGATED CO-COMMISSIONING,CARTERKNOWLE & DORE MEDICAL PRACTICE,32473569,"7,596.50",PRC DELEGATED CO-COMMISSIONING,S7 2DW
Department of Health,NHS Sheffield CCG,5/31/2020,C&M-GMS Prof Fees Prescribing,PRC DELEGATED CO-COMMISSIONING,CARTERKNOWLE & DORE MEDICAL PRACTICE,32473569,182.07,PRC DELEGATED CO-COMMISSIONING,S7 2DW
Department of Health,NHS Sheffield CCG,5/31/2020,C&M-GMS QOF Aspiration,PRC DELEGATED CO-COMMISSIONING,CARTERKNOWLE & DORE MEDICAL PRACTICE,32473569,"10,055.02",PRC DELEGATED CO-COMMISSIONING,S7 2DW
Department of Health,NHS Sheffield CCG,5/31/2020,C&M-GMS Cost of Drugs -Prescribing,LOCAL ENHANCED SERVICES,CHARNOCK HEALTH PRIMARY CARE CENTRE,32473565,"1,614.88",LOCAL ENHANCED SERVICES,S12 3GH
Department of Health,NHS Sheffield CCG,5/31/2020,C&M-GMS DES Minor Surgery,PRC DELEGATED CO-COMMISSIONING,CHARNOCK HEALTH PRIMARY CARE CENTRE,32473565,"2,410.00",PRC DELEGATED CO-COMMISSIONING,S12 3GH
Department of Health,NHS Sheffield CCG,5/31/2020,C&M-GMS Global Sum,PRC DELEGATED CO-COMMISSIONING,CHARNOCK HEALTH PRIMARY CARE CENTRE,32473565,"45,132.16",PRC DELEGATED CO-COMMISSIONING,S12 3GH
Department of Health,NHS Sheffield CCG,5/31/2020,C&M-GMS PCN DES Participation,PRC DELEGATED CO-COMMISSIONING,CHARNOCK HEALTH PRIMARY CARE CENTRE,32473565,893.45,PRC DELEGATED CO-COMMISSIONING,S12 3GH
Department of Health,NHS Sheffield CCG,5/31/2020,C&M-GMS PCO Other,PRC DELEGATED CO-COMMISSIONING,CHARNOCK HEALTH PRIMARY CARE CENTRE,32473565,742.00,PRC DELEGATED CO-COMMISSIONING,S12 3GH
Department of Health,NHS Sheffield CCG,5/31/2020,C&M-GMS Prem Notional Rent,PRC DELEGATED CO-COMMISSIONING,CHARNOCK HEALTH PRIMARY CARE CENTRE,32473565,335.00,PRC DELEGATED CO-COMMISSIONING,S12 3GH
Department of Health,NHS Sheffield CCG,5/31/2020,C&M-GMS Prem Rates,PRC DELEGATED CO-COMMISSIONING,CHARNOCK HEALTH PRIMARY CARE CENTRE,32473565,"1,572.00",PRC DELEGATED CO-COMMISSIONING,S12 3GH
Department of Health,NHS Sheffield CCG,5/31/2020,C&M-GMS Prof Fees Prescribing,PRC DELEGATED CO-COMMISSIONING,CHARNOCK HEALTH PRIMARY CARE CENTRE,32473565,138.63,PRC DELEGATED CO-COMMISSIONING,S12 3GH
Department of Health,NHS Sheffield CCG,5/31/2020,C&M-GMS QOF Aspiration,PRC DELEGATED CO-COMMISSIONING,CHARNOCK HEALTH PRIMARY CARE CENTRE,32473565,"4,932.79",PRC DELEGATED CO-COMMISSIONING,S12 3GH
Department of Health,NHS Sheffield CCG,5/31/2020,Hcare Srv Rec Fdtn Trust-Contract Baseline,ACUTE COMMISSIONING,CHESTERFIELD ROYAL HOSPITAL NHS FOUNDATION TRUST,32303328,"369,177.00",ACUTE COMMISSIONING,S44 5BL
Department of Health,NHS Sheffield CCG,5/31/2020,C&M-APMS Contract Value,PRC DELEGATED CO-COMMISSIONING,CLOVER CITY PRACTICE,32289991,"29,038.75",PRC DELEGATED CO-COMMISSIONING,S9 4QH
Department of Health,NHS Sheffield CCG,5/31/2020,C&M-APMS PCN DES Participation,PRC DELEGATED CO-COMMISSIONING,CLOVER CITY PRACTICE,32289991,563.87,PRC DELEGATED CO-COMMISSIONING,S9 4QH
Department of Health,NHS Sheffield CCG,5/31/2020,C&M-PMS QOF Aspiration,PRC DELEGATED CO-COMMISSIONING,CLOVER CITY PRACTICE,32289991,"1,537.57",PRC DELEGATED CO-COMMISSIONING,S9 4QH
Department of Health,NHS Sheffield CCG,5/31/2020,C&M-APMS Contract Value,PRC DELEGATED CO-COMMISSIONING,CLOVER GROUP PRACTICE,32314229,"127,626.67",PRC DELEGATED CO-COMMISSIONING,S9 4QH
Department of Health,NHS Sheffield CCG,5/31/2020,C&M-APMS PCN DES Participation,PRC DELEGATED CO-COMMISSIONING,CLOVER GROUP PRACTICE,32314229,"2,478.23",PRC DELEGATED CO-COMMISSIONING,S9 4QH
Department of Health,NHS Sheffield CCG,5/31/2020,C&M-APMS Prem Actual Rent,PRC DELEGATED CO-COMMISSIONING,CLOVER GROUP PRACTICE,32314229,"5,169.68",PRC DELEGATED CO-COMMISSIONING,S9 4QH
Department of Health,NHS Sheffield CCG,5/31/2020,C&M-APMS Prem Healthcentre Rent,PRC DELEGATED CO-COMMISSIONING,CLOVER GROUP PRACTICE,32314229,"58,714.62",PRC DELEGATED CO-COMMISSIONING,S9 4QH
Department of Health,NHS Sheffield CCG,5/31/2020,C&M-APMS Prem Notional Rent,PRC DELEGATED CO-COMMISSIONING,CLOVER GROUP PRACTICE,32314229,"2,804.17",PRC DELEGATED CO-COMMISSIONING,S9 4QH
Department of Health,NHS Sheffield CCG,5/31/2020,C&M-PMS PCO Locum Sickness,PRC DELEGATED CO-COMMISSIONING,CLOVER GROUP PRACTICE,32314229,"7,585.98",PRC DELEGATED CO-COMMISSIONING,S9 4QH
Department of Health,NHS Sheffield CCG,5/31/2020,C&M-PMS QOF Aspiration,PRC DELEGATED CO-COMMISSIONING,CLOVER GROUP PRACTICE,32314229,"11,480.20",PRC DELEGATED CO-COMMISSIONING,S9 4QH
Department of Health,NHS Sheffield CCG,5/31/2020,Computer Software/License,PROCUREMENT,COMMERCE DECISIONS LTD,32156827,"54,116.69",PROCUREMENT,OX14 4RY
Department of Health,NHS Sheffield CCG,5/31/2020,Voids and Subsidies,PRC DELEGATED CO-COMMISSIONING,COMMUNITY HEALTH PARTNERSHIPS LTD,32297575,"37,796.72",PRC DELEGATED CO-COMMISSIONING,M1 5AN
Department of Health,NHS Sheffield CCG,5/31/2020,Voids and Subsidies,RECHARGES NHS PROPERTY SERVICES LTD,COMMUNITY HEALTH PARTNERSHIPS LTD,32297575,"96,714.68",https://nww.einvoice-prod.sbs.nhs.uk:8179/invoicepdf/650e8b3c-7806-598f-9ead-28bde602be6a,M1 5AN
Department of Health,NHS Sheffield CCG,5/31/2020,Voids and Subsidies,PRC DELEGATED CO-COMMISSIONING,COMMUNITY HEALTH PARTNERSHIPS LTD,32297578,"37,796.72",PRC DELEGATED CO-COMMISSIONING,M1 5AN
Department of Health,NHS Sheffield CCG,5/31/2020,Voids and Subsidies,RECHARGES NHS PROPERTY SERVICES LTD,COMMUNITY HEALTH PARTNERSHIPS LTD,32297578,"96,714.68",https://nww.einvoice-prod.sbs.nhs.uk:8179/invoicepdf/1a9d4140-5ac8-5daf-a152-76563e2090b4,M1 5AN
Department of Health,NHS Sheffield CCG,5/31/2020,Voids and Subsidies,PRC DELEGATED CO-COMMISSIONING,COMMUNITY HEALTH PARTNERSHIPS LTD,32524305,"37,796.42",PRC DELEGATED CO-COMMISSIONING,M1 5AN
Department of Health,NHS Sheffield CCG,5/31/2020,Voids and Subsidies,RECHARGES NHS PROPERTY SERVICES LTD,COMMUNITY HEALTH PARTNERSHIPS LTD,32524305,"96,714.98",https://nww.einvoice-prod.sbs.nhs.uk:8179/invoicepdf/31c42175-1854-5bba-9f92-e6bb9bb9cc73,M1 5AN
Department of Health,NHS Sheffield CCG,5/31/2020,C&M-GMS Cost of Drugs -Prescribing,LOCAL ENHANCED SERVICES,CROOKES PRACTICE,32473574,394.48,LOCAL ENHANCED SERVICES,S10 1GN
Department of Health,NHS Sheffield CCG,5/31/2020,C&M-GMS Global Sum,PRC DELEGATED CO-COMMISSIONING,CROOKES PRACTICE,32473574,"54,938.27",PRC DELEGATED CO-COMMISSIONING,S10 1GN
Department of Health,NHS Sheffield CCG,5/31/2020,C&M-GMS PCN DES Participation,PRC DELEGATED CO-COMMISSIONING,CROOKES PRACTICE,32473574,"1,070.10",PRC DELEGATED CO-COMMISSIONING,S10 1GN
Department of Health,NHS Sheffield CCG,5/31/2020,C&M-GMS PCO Other,PRC DELEGATED CO-COMMISSIONING,CROOKES PRACTICE,32473574,"1,055.40",PRC DELEGATED CO-COMMISSIONING,S10 1GN
Department of Health,NHS Sheffield CCG,5/31/2020,C&M-GMS Prem Notional Rent,PRC DELEGATED CO-COMMISSIONING,CROOKES PRACTICE,32473574,"3,874.67",PRC DELEGATED CO-COMMISSIONING,S10 1GN
Department of Health,NHS Sheffield CCG,5/31/2020,C&M-GMS Prem Rates,PRC DELEGATED CO-COMMISSIONING,CROOKES PRACTICE,32473574,"1,534.00",PRC DELEGATED CO-COMMISSIONING,S10 1GN
Department of Health,NHS Sheffield CCG,5/31/2020,C&M-GMS Prof Fees Prescribing,PRC DELEGATED CO-COMMISSIONING,CROOKES PRACTICE,32473574,80.69,PRC DELEGATED CO-COMMISSIONING,S10 1GN
Department of Health,NHS Sheffield CCG,5/31/2020,C&M-GMS QOF Aspiration,PRC DELEGATED CO-COMMISSIONING,CROOKES PRACTICE,32473574,"4,885.77",PRC DELEGATED CO-COMMISSIONING,S10 1GN
Department of Health,NHS Sheffield CCG,5/31/2020,Voids and Subsidies,RECHARGES NHS PROPERTY SERVICES LTD,DARNALL WELL BEING,32488065,"32,150.43",RECHARGES NHS PROPERTY SERVICES LTD,S9 4QH
Department of Health,NHS Sheffield CCG,5/31/2020,C&M-PMS Contract Value,PRC DELEGATED CO-COMMISSIONING,DEEPCAR MEDICAL CENTRE,32288931,"41,477.33",PRC DELEGATED CO-COMMISSIONING,S36 2RA
Department of Health,NHS Sheffield CCG,5/31/2020,C&M-PMS Dispensing Quality Sch,PRC DELEGATED CO-COMMISSIONING,DEEPCAR MEDICAL CENTRE,32288931,"1,124.88",PRC DELEGATED CO-COMMISSIONING,S36 2RA
Department of Health,NHS Sheffield CCG,5/31/2020,C&M-PMS GP Statutory Levy,PRC DELEGATED CO-COMMISSIONING,DEEPCAR MEDICAL CENTRE,32288931,0.46,PRC DELEGATED CO-COMMISSIONING,S36 2RA
Department of Health,NHS Sheffield CCG,5/31/2020,C&M-PMS PCN DES Participation,PRC DELEGATED CO-COMMISSIONING,DEEPCAR MEDICAL CENTRE,32288931,790.09,PRC DELEGATED CO-COMMISSIONING,S36 2RA
Department of Health,NHS Sheffield CCG,5/31/2020,C&M-PMS Prem Healthcentre Rent,PRC DELEGATED CO-COMMISSIONING,DEEPCAR MEDICAL CENTRE,32288931,"29,915.44",PRC DELEGATED CO-COMMISSIONING,S36 2RA
Department of Health,NHS Sheffield CCG,5/31/2020,C&M-PMS QOF Aspiration,PRC DELEGATED CO-COMMISSIONING,DEEPCAR MEDICAL CENTRE,32288931,"4,298.67",PRC DELEGATED CO-COMMISSIONING,S36 2RA
Department of Health,NHS Sheffield CCG,5/31/2020,Computer Hardware Purch,EMERGENCY PLANNING,DELL CORPORATION LTD,32329074,"29,950.00",300 x Latitude Bundle SKU as per quote no 105369564 from Matt Wall,RG12 1LF
Department of Health,NHS Sheffield CCG,5/31/2020,Computer Hardware Purch,EMERGENCY PLANNING,DELL CORPORATION LTD,32329074,"5,990.00",EMERGENCY PLANNING,RG12 1LF
Department of Health,NHS Sheffield CCG,5/31/2020,C&M-GMS Cost of Drugs -Prescribing,LOCAL ENHANCED SERVICES,DEVONSHIRE GREEN MEDICAL CENTRE,32473577,"2,076.78",LOCAL ENHANCED SERVICES,S3 7SF
Department of Health,NHS Sheffield CCG,5/31/2020,C&M-GMS DES Minor Surgery,PRC DELEGATED CO-COMMISSIONING,DEVONSHIRE GREEN MEDICAL CENTRE,32473577,500.00,PRC DELEGATED CO-COMMISSIONING,S3 7SF
Department of Health,NHS Sheffield CCG,5/31/2020,C&M-GMS Global Sum,PRC DELEGATED CO-COMMISSIONING,DEVONSHIRE GREEN MEDICAL CENTRE,32473577,"48,953.56",PRC DELEGATED CO-COMMISSIONING,S3 7SF
Department of Health,NHS Sheffield CCG,5/31/2020,C&M-GMS PCN DES Participation,PRC DELEGATED CO-COMMISSIONING,DEVONSHIRE GREEN MEDICAL CENTRE,32473577,935.21,PRC DELEGATED CO-COMMISSIONING,S3 7SF
Department of Health,NHS Sheffield CCG,5/31/2020,C&M-GMS PCO Other,PRC DELEGATED CO-COMMISSIONING,DEVONSHIRE GREEN MEDICAL CENTRE,32473577,"4,565.00",PRC DELEGATED CO-COMMISSIONING,S3 7SF
Department of Health,NHS Sheffield CCG,5/31/2020,C&M-GMS Prem Notional Rent,PRC DELEGATED CO-COMMISSIONING,DEVONSHIRE GREEN MEDICAL CENTRE,32473577,"5,987.50",PRC DELEGATED CO-COMMISSIONING,S3 7SF
Department of Health,NHS Sheffield CCG,5/31/2020,C&M-GMS Prof Fees Prescribing,PRC DELEGATED CO-COMMISSIONING,DEVONSHIRE GREEN MEDICAL CENTRE,32473577,401.38,PRC DELEGATED CO-COMMISSIONING,S3 7SF
Department of Health,NHS Sheffield CCG,5/31/2020,C&M-GMS QOF Aspiration,PRC DELEGATED CO-COMMISSIONING,DEVONSHIRE GREEN MEDICAL CENTRE,32473577,"4,805.68",PRC DELEGATED CO-COMMISSIONING,S3 7SF
Department of Health,NHS Sheffield CCG,5/31/2020,Hcare Srv Rec Fdtn Trust-Contract Baseline,ACUTE COMMISSIONING,DONCASTER AND BASSETLAW HOSPITALS NHS FOUNDATION TRUST,32303329,"79,729.44",ACUTE COMMISSIONING,WF3 1WE
Department of Health,NHS Sheffield CCG,5/31/2020,C&M-PMS Contract Value,PRC DELEGATED CO-COMMISSIONING,DOVERCOURT SURGERY,32288933,"73,656.67",PRC DELEGATED CO-COMMISSIONING,S2 5FX
Department of Health,NHS Sheffield CCG,5/31/2020,C&M-PMS PCN DES Participation,PRC DELEGATED CO-COMMISSIONING,DOVERCOURT SURGERY,32288933,"1,405.71",PRC DELEGATED CO-COMMISSIONING,S2 5FX
Department of Health,NHS Sheffield CCG,5/31/2020,C&M-PMS PCO Locum Sickness,PRC DELEGATED CO-COMMISSIONING,DOVERCOURT SURGERY,32288933,"6,877.58",PRC DELEGATED CO-COMMISSIONING,S2 5FX
Department of Health,NHS Sheffield CCG,5/31/2020,C&M-PMS PCO Other,PRC DELEGATED CO-COMMISSIONING,DOVERCOURT SURGERY,32288933,"1,085.60",PRC DELEGATED CO-COMMISSIONING,S2 5FX
Department of Health,NHS Sheffield CCG,5/31/2020,C&M-PMS Prem Actual Rent,PRC DELEGATED CO-COMMISSIONING,DOVERCOURT SURGERY,32288933,"12,400.00",PRC DELEGATED CO-COMMISSIONING,S2 5FX
Department of Health,NHS Sheffield CCG,5/31/2020,C&M-PMS Prem Notional Rent,PRC DELEGATED CO-COMMISSIONING,DOVERCOURT SURGERY,32288933,"1,708.33",PRC DELEGATED CO-COMMISSIONING,S2 5FX
Department of Health,NHS Sheffield CCG,5/31/2020,C&M-PMS QOF Aspiration,PRC DELEGATED CO-COMMISSIONING,DOVERCOURT SURGERY,32288933,"7,675.00",PRC DELEGATED CO-COMMISSIONING,S2 5FX
Department of Health,NHS Sheffield CCG,5/31/2020,C&M-PMS Contract Value,PRC DELEGATED CO-COMMISSIONING,DR MEHROTRA & PARTNER,32288935,"24,875.33",PRC DELEGATED CO-COMMISSIONING,S9 5DH
Department of Health,NHS Sheffield CCG,5/31/2020,C&M-PMS PCN DES Participation,PRC DELEGATED CO-COMMISSIONING,DR MEHROTRA & PARTNER,32288935,472.15,PRC DELEGATED CO-COMMISSIONING,S9 5DH
Department of Health,NHS Sheffield CCG,5/31/2020,C&M-PMS Prem Notional Rent,PRC DELEGATED CO-COMMISSIONING,DR MEHROTRA & PARTNER,32288935,"5,157.29",PRC DELEGATED CO-COMMISSIONING,S9 5DH
Department of Health,NHS Sheffield CCG,5/31/2020,C&M-PMS QOF Aspiration,PRC DELEGATED CO-COMMISSIONING,DR MEHROTRA & PARTNER,32288935,"2,763.65",PRC DELEGATED CO-COMMISSIONING,S9 5DH
Department of Health,NHS Sheffield CCG,5/31/2020,C&M-PMS Contract Value,PRC DELEGATED CO-COMMISSIONING,DR MILNER & PARTNERS,32288937,"76,289.75",PRC DELEGATED CO-COMMISSIONING,S6 4JQ
Department of Health,NHS Sheffield CCG,5/31/2020,C&M-PMS PCN DES Participation,PRC DELEGATED CO-COMMISSIONING,DR MILNER & PARTNERS,32288937,"1,452.54",PRC DELEGATED CO-COMMISSIONING,S6 4JQ
Department of Health,NHS Sheffield CCG,5/31/2020,C&M-PMS PCO Other,PRC DELEGATED CO-COMMISSIONING,DR MILNER & PARTNERS,32288937,"6,625.00",PRC DELEGATED CO-COMMISSIONING,S6 4JQ
Department of Health,NHS Sheffield CCG,5/31/2020,C&M-PMS Prem Actual Rent,PRC DELEGATED CO-COMMISSIONING,DR MILNER & PARTNERS,32288937,"11,382.00",PRC DELEGATED CO-COMMISSIONING,S6 4JQ
Department of Health,NHS Sheffield CCG,5/31/2020,C&M-PMS Prem Notional Rent,PRC DELEGATED CO-COMMISSIONING,DR MILNER & PARTNERS,32288937,"4,462.42",PRC DELEGATED CO-COMMISSIONING,S6 4JQ
Department of Health,NHS Sheffield CCG,5/31/2020,C&M-PMS Prem Rates,PRC DELEGATED CO-COMMISSIONING,DR MILNER & PARTNERS,32288937,"1,071.00",PRC DELEGATED CO-COMMISSIONING,S6 4JQ
Department of Health,NHS Sheffield CCG,5/31/2020,C&M-PMS Prem Water Rates,PRC DELEGATED CO-COMMISSIONING,DR MILNER & PARTNERS,32288937,819.23,PRC DELEGATED CO-COMMISSIONING,S6 4JQ
Department of Health,NHS Sheffield CCG,5/31/2020,C&M-PMS QOF Aspiration,PRC DELEGATED CO-COMMISSIONING,DR MILNER & PARTNERS,32288937,"6,513.90",PRC DELEGATED CO-COMMISSIONING,S6 4JQ
Department of Health,NHS Sheffield CCG,5/31/2020,C&M-GMS Cost of Drugs -Prescribing,LOCAL ENHANCED SERVICES,DUKE MEDICAL CENTRE,32473582,"1,756.23",LOCAL ENHANCED SERVICES,S2 2TD
Department of Health,NHS Sheffield CCG,5/31/2020,C&M-GMS DES Minor Surgery,PRC DELEGATED CO-COMMISSIONING,DUKE MEDICAL CENTRE,32473582,600.00,PRC DELEGATED CO-COMMISSIONING,S2 2TD
Department of Health,NHS Sheffield CCG,5/31/2020,C&M-GMS Global Sum,PRC DELEGATED CO-COMMISSIONING,DUKE MEDICAL CENTRE,32473582,"61,537.16",PRC DELEGATED CO-COMMISSIONING,S2 2TD
Department of Health,NHS Sheffield CCG,5/31/2020,C&M-GMS PCN DES Participation,PRC DELEGATED CO-COMMISSIONING,DUKE MEDICAL CENTRE,32473582,"1,155.59",PRC DELEGATED CO-COMMISSIONING,S2 2TD
Department of Health,NHS Sheffield CCG,5/31/2020,C&M-GMS Prem Notional Rent,PRC DELEGATED CO-COMMISSIONING,DUKE MEDICAL CENTRE,32473582,"5,721.67",PRC DELEGATED CO-COMMISSIONING,S2 2TD
Department of Health,NHS Sheffield CCG,5/31/2020,C&M-GMS Prem Water Rates,PRC DELEGATED CO-COMMISSIONING,DUKE MEDICAL CENTRE,32473582,224.98,PRC DELEGATED CO-COMMISSIONING,S2 2TD
Department of Health,NHS Sheffield CCG,5/31/2020,C&M-GMS Prof Fees Prescribing,PRC DELEGATED CO-COMMISSIONING,DUKE MEDICAL CENTRE,32473582,260.69,PRC DELEGATED CO-COMMISSIONING,S2 2TD
Department of Health,NHS Sheffield CCG,5/31/2020,C&M-GMS QOF Aspiration,PRC DELEGATED CO-COMMISSIONING,DUKE MEDICAL CENTRE,32473582,"5,166.69",PRC DELEGATED CO-COMMISSIONING,S2 2TD
Department of Health,NHS Sheffield CCG,5/31/2020,C&M-GMS GP Statutory Levy,PRC DELEGATED CO-COMMISSIONING,DUKE MEDICAL CENTRE,32498295,-255.85,PRC DELEGATED CO-COMMISSIONING,S2 2TD
Department of Health,NHS Sheffield CCG,5/31/2020,C&M-PMS Contract Value,PRC DELEGATED CO-COMMISSIONING,DUNNINC ROAD SURGERY,32288939,"21,584.25",PRC DELEGATED CO-COMMISSIONING,S5 0AE
Department of Health,NHS Sheffield CCG,5/31/2020,C&M-PMS GP Statutory Levy,PRC DELEGATED CO-COMMISSIONING,DUNNINC ROAD SURGERY,32288939,1.44,PRC DELEGATED CO-COMMISSIONING,S5 0AE
Department of Health,NHS Sheffield CCG,5/31/2020,C&M-PMS PCN DES Participation,PRC DELEGATED CO-COMMISSIONING,DUNNINC ROAD SURGERY,32288939,408.46,PRC DELEGATED CO-COMMISSIONING,S5 0AE
Department of Health,NHS Sheffield CCG,5/31/2020,C&M-PMS Prem Notional Rent,PRC DELEGATED CO-COMMISSIONING,DUNNINC ROAD SURGERY,32288939,"1,695.83",PRC DELEGATED CO-COMMISSIONING,S5 0AE
Department of Health,NHS Sheffield CCG,5/31/2020,C&M-PMS QOF Aspiration,PRC DELEGATED CO-COMMISSIONING,DUNNINC ROAD SURGERY,32288939,"2,054.91",PRC DELEGATED CO-COMMISSIONING,S5 0AE
Department of Health,NHS Sheffield CCG,5/31/2020,C&M-PCN DES Support Payment,PRC DELEGATED CO-COMMISSIONING,DYKES HALL MEDICAL CENTRE,32314230,"3,190.89",PRC DELEGATED CO-COMMISSIONING,S6 4GQ
Department of Health,NHS Sheffield CCG,5/31/2020,C&M-PMS Contract Value,PRC DELEGATED CO-COMMISSIONING,DYKES HALL MEDICAL CENTRE,32314230,"71,375.17",PRC DELEGATED CO-COMMISSIONING,S6 4GQ
Department of Health,NHS Sheffield CCG,5/31/2020,C&M-PMS DES Extended Hours Access,PRC DELEGATED CO-COMMISSIONING,DYKES HALL MEDICAL CENTRE,32314230,"4,338.04",PRC DELEGATED CO-COMMISSIONING,S6 4GQ
Department of Health,NHS Sheffield CCG,5/31/2020,C&M-PMS GP Statutory Levy,PRC DELEGATED CO-COMMISSIONING,DYKES HALL MEDICAL CENTRE,32314230,2.21,PRC DELEGATED CO-COMMISSIONING,S6 4GQ
Department of Health,NHS Sheffield CCG,5/31/2020,C&M-PMS PCN DES Clinical Director,PRC DELEGATED CO-COMMISSIONING,DYKES HALL MEDICAL CENTRE,32314230,"2,160.04",PRC DELEGATED CO-COMMISSIONING,S6 4GQ
Department of Health,NHS Sheffield CCG,5/31/2020,C&M-PMS PCN DES PCN support,LOCAL ENHANCED SERVICES,DYKES HALL MEDICAL CENTRE,32314230,"4,487.63",LOCAL ENHANCED SERVICES,S6 4GQ
Department of Health,NHS Sheffield CCG,5/31/2020,C&M-PMS PCN DES Participation,PRC DELEGATED CO-COMMISSIONING,DYKES HALL MEDICAL CENTRE,32314230,"1,355.09",PRC DELEGATED CO-COMMISSIONING,S6 4GQ
Department of Health,NHS Sheffield CCG,5/31/2020,C&M-PMS Prem Notional Rent,PRC DELEGATED CO-COMMISSIONING,DYKES HALL MEDICAL CENTRE,32314230,"5,377.08",PRC DELEGATED CO-COMMISSIONING,S6 4GQ
Department of Health,NHS Sheffield CCG,5/31/2020,C&M-PMS Prem Rates,PRC DELEGATED CO-COMMISSIONING,DYKES HALL MEDICAL CENTRE,32314230,"1,366.00",PRC DELEGATED CO-COMMISSIONING,S6 4GQ
Department of Health,NHS Sheffield CCG,5/31/2020,C&M-PMS QOF Aspiration,PRC DELEGATED CO-COMMISSIONING,DYKES HALL MEDICAL CENTRE,32314230,"8,323.49",PRC DELEGATED CO-COMMISSIONING,S6 4GQ
Department of Health,NHS Sheffield CCG,5/31/2020,C&M-PMS Contract Value,PRC DELEGATED CO-COMMISSIONING,EAST BANK MEDICAL CENTRE,32288942,"49,109.33",PRC DELEGATED CO-COMMISSIONING,S2 2AG
Department of Health,NHS Sheffield CCG,5/31/2020,C&M-PMS PCN DES Participation,PRC DELEGATED CO-COMMISSIONING,EAST BANK MEDICAL CENTRE,32288942,937.18,PRC DELEGATED CO-COMMISSIONING,S2 2AG
Department of Health,NHS Sheffield CCG,5/31/2020,C&M-PMS Prem Notional Rent,PRC DELEGATED CO-COMMISSIONING,EAST BANK MEDICAL CENTRE,32288942,"10,583.33",PRC DELEGATED CO-COMMISSIONING,S2 2AG
Department of Health,NHS Sheffield CCG,5/31/2020,C&M-PMS Prem Rates,PRC DELEGATED CO-COMMISSIONING,EAST BANK MEDICAL CENTRE,32288942,"5,888.00",PRC DELEGATED CO-COMMISSIONING,S2 2AG
Department of Health,NHS Sheffield CCG,5/31/2020,C&M-PMS Prem Water Rates,PRC DELEGATED CO-COMMISSIONING,EAST BANK MEDICAL CENTRE,32288942,291.72,PRC DELEGATED CO-COMMISSIONING,S2 2AG
Department of Health,NHS Sheffield CCG,5/31/2020,C&M-PMS QOF Aspiration,PRC DELEGATED CO-COMMISSIONING,EAST BANK MEDICAL CENTRE,32288942,"5,026.31",PRC DELEGATED CO-COMMISSIONING,S2 2AG
Department of Health,NHS Sheffield CCG,5/31/2020,C&M-GMS Cost of Drugs -Prescribing,LOCAL ENHANCED SERVICES,ECCLESFIELD GROUP PRACTICE,32498294,"1,552.79",LOCAL ENHANCED SERVICES,S35 9XQ
Department of Health,NHS Sheffield CCG,5/31/2020,C&M-GMS DES Extended Hours Access,PRC DELEGATED CO-COMMISSIONING,ECCLESFIELD GROUP PRACTICE,32498294,"5,160.79",PRC DELEGATED CO-COMMISSIONING,S35 9XQ
Department of Health,NHS Sheffield CCG,5/31/2020,C&M-GMS DES Minor Surgery,PRC DELEGATED CO-COMMISSIONING,ECCLESFIELD GROUP PRACTICE,32498294,560.00,PRC DELEGATED CO-COMMISSIONING,S35 9XQ
Department of Health,NHS Sheffield CCG,5/31/2020,C&M-GMS Global Sum,PRC DELEGATED CO-COMMISSIONING,ECCLESFIELD GROUP PRACTICE,32498294,"73,114.58",PRC DELEGATED CO-COMMISSIONING,S35 9XQ
Department of Health,NHS Sheffield CCG,5/31/2020,C&M-GMS PCN DES Clinical Director,PRC DELEGATED CO-COMMISSIONING,ECCLESFIELD GROUP PRACTICE,32498294,"2,569.72",PRC DELEGATED CO-COMMISSIONING,S35 9XQ
Department of Health,NHS Sheffield CCG,5/31/2020,C&M-GMS PCN DES PCN support,LOCAL ENHANCED SERVICES,ECCLESFIELD GROUP PRACTICE,32498294,"5,338.75",LOCAL ENHANCED SERVICES,S35 9XQ
Department of Health,NHS Sheffield CCG,5/31/2020,C&M-GMS PCN DES Participation,PRC DELEGATED CO-COMMISSIONING,ECCLESFIELD GROUP PRACTICE,32498294,"1,438.45",PRC DELEGATED CO-COMMISSIONING,S35 9XQ
Department of Health,NHS Sheffield CCG,5/31/2020,C&M-GMS PCO Locum Sickness,PRC DELEGATED CO-COMMISSIONING,ECCLESFIELD GROUP PRACTICE,32498294,"4,365.79",PRC DELEGATED CO-COMMISSIONING,S35 9XQ
Department of Health,NHS Sheffield CCG,5/31/2020,C&M-GMS Prem Notional Rent,PRC DELEGATED CO-COMMISSIONING,ECCLESFIELD GROUP PRACTICE,32498294,"6,805.42",PRC DELEGATED CO-COMMISSIONING,S35 9XQ
Department of Health,NHS Sheffield CCG,5/31/2020,C&M-GMS Prem Rates,PRC DELEGATED CO-COMMISSIONING,ECCLESFIELD GROUP PRACTICE,32498294,551.00,PRC DELEGATED CO-COMMISSIONING,S35 9XQ
Department of Health,NHS Sheffield CCG,5/31/2020,C&M-GMS Prem Water Rates,PRC DELEGATED CO-COMMISSIONING,ECCLESFIELD GROUP PRACTICE,32498294,376.73,PRC DELEGATED CO-COMMISSIONING,S35 9XQ
Department of Health,NHS Sheffield CCG,5/31/2020,C&M-GMS Prof Fees Prescribing,PRC DELEGATED CO-COMMISSIONING,ECCLESFIELD GROUP PRACTICE,32498294,256.56,PRC DELEGATED CO-COMMISSIONING,S35 9XQ
Department of Health,NHS Sheffield CCG,5/31/2020,C&M-GMS QOF Aspiration,PRC DELEGATED CO-COMMISSIONING,ECCLESFIELD GROUP PRACTICE,32498294,"9,179.49",PRC DELEGATED CO-COMMISSIONING,S35 9XQ
Department of Health,NHS Sheffield CCG,5/31/2020,C&M-PCN DES Support Payment,PRC DELEGATED CO-COMMISSIONING,ECCLESFIELD GROUP PRACTICE,32498294,"2,071.64",PRC DELEGATED CO-COMMISSIONING,S35 9XQ
Department of Health,NHS Sheffield CCG,5/31/2020,C&M-GMS Cost of Drugs -Prescribing,LOCAL ENHANCED SERVICES,ELM LANE SURGERY,32473581,"1,341.28",LOCAL ENHANCED SERVICES,S5 7TW
Department of Health,NHS Sheffield CCG,5/31/2020,C&M-GMS DES Minor Surgery,PRC DELEGATED CO-COMMISSIONING,ELM LANE SURGERY,32473581,80.00,PRC DELEGATED CO-COMMISSIONING,S5 7TW
Department of Health,NHS Sheffield CCG,5/31/2020,C&M-GMS Global Sum,PRC DELEGATED CO-COMMISSIONING,ELM LANE SURGERY,32473581,"42,904.58",PRC DELEGATED CO-COMMISSIONING,S5 7TW
Department of Health,NHS Sheffield CCG,5/31/2020,C&M-GMS PCN DES Participation,PRC DELEGATED CO-COMMISSIONING,ELM LANE SURGERY,32473581,851.24,PRC DELEGATED CO-COMMISSIONING,S5 7TW
Department of Health,NHS Sheffield CCG,5/31/2020,C&M-GMS Prem Notional Rent,PRC DELEGATED CO-COMMISSIONING,ELM LANE SURGERY,32473581,"5,343.00",PRC DELEGATED CO-COMMISSIONING,S5 7TW
Department of Health,NHS Sheffield CCG,5/31/2020,C&M-GMS Prof Fees Prescribing,PRC DELEGATED CO-COMMISSIONING,ELM LANE SURGERY,32473581,136.56,PRC DELEGATED CO-COMMISSIONING,S5 7TW
Department of Health,NHS Sheffield CCG,5/31/2020,C&M-GMS QOF Aspiration,PRC DELEGATED CO-COMMISSIONING,ELM LANE SURGERY,32473581,"4,720.25",PRC DELEGATED CO-COMMISSIONING,S5 7TW
Department of Health,NHS Sheffield CCG,5/31/2020,Cont Care-Physical Disab (<65),CHC ADULT FULLY FUNDED,FAIRWINDS HEALTH CARE LTD,32426266,"43,157.29",CHC SCHEDULE MAY 2020 - Fairwinds Nursing Home,S61 1AJ
Department of Health,NHS Sheffield CCG,5/31/2020,C&M-PMS Contract Value,PRC DELEGATED CO-COMMISSIONING,FALKLAND HOUSE,32288946,"25,997.42",PRC DELEGATED CO-COMMISSIONING,S11 7PL
Department of Health,NHS Sheffield CCG,5/31/2020,C&M-PMS GP Statutory Levy,PRC DELEGATED CO-COMMISSIONING,FALKLAND HOUSE,32288946,0.28,PRC DELEGATED CO-COMMISSIONING,S11 7PL
Department of Health,NHS Sheffield CCG,5/31/2020,C&M-PMS PCN DES Participation,PRC DELEGATED CO-COMMISSIONING,FALKLAND HOUSE,32288946,497.02,PRC DELEGATED CO-COMMISSIONING,S11 7PL
Department of Health,NHS Sheffield CCG,5/31/2020,C&M-PMS PCO Other,PRC DELEGATED CO-COMMISSIONING,FALKLAND HOUSE,32288946,553.00,PRC DELEGATED CO-COMMISSIONING,S11 7PL
Department of Health,NHS Sheffield CCG,5/31/2020,C&M-PMS Prem Notional Rent,PRC DELEGATED CO-COMMISSIONING,FALKLAND HOUSE,32288946,"1,866.67",PRC DELEGATED CO-COMMISSIONING,S11 7PL
Department of Health,NHS Sheffield CCG,5/31/2020,C&M-PMS Prem Rates,PRC DELEGATED CO-COMMISSIONING,FALKLAND HOUSE,32288946,"1,571.25",PRC DELEGATED CO-COMMISSIONING,S11 7PL
Department of Health,NHS Sheffield CCG,5/31/2020,C&M-PMS QOF Aspiration,PRC DELEGATED CO-COMMISSIONING,FALKLAND HOUSE,32288946,"2,925.24",PRC DELEGATED CO-COMMISSIONING,S11 7PL
Department of Health,NHS Sheffield CCG,5/31/2020,C&M-GMS Cost of Drugs -Prescribing,LOCAL ENHANCED SERVICES,FAR LANE MEDICAL CENTRE,32473589,125.62,LOCAL ENHANCED SERVICES,S6 4FA
Department of Health,NHS Sheffield CCG,5/31/2020,C&M-GMS DES Minor Surgery,PRC DELEGATED CO-COMMISSIONING,FAR LANE MEDICAL CENTRE,32473589,"4,310.00",PRC DELEGATED CO-COMMISSIONING,S6 4FA
Department of Health,NHS Sheffield CCG,5/31/2020,C&M-GMS Global Sum,PRC DELEGATED CO-COMMISSIONING,FAR LANE MEDICAL CENTRE,32473589,"57,482.02",PRC DELEGATED CO-COMMISSIONING,S6 4FA
Department of Health,NHS Sheffield CCG,5/31/2020,C&M-GMS PCN DES Participation,PRC DELEGATED CO-COMMISSIONING,FAR LANE MEDICAL CENTRE,32473589,"1,137.91",PRC DELEGATED CO-COMMISSIONING,S6 4FA
Department of Health,NHS Sheffield CCG,5/31/2020,C&M-GMS PCO Other,PRC DELEGATED CO-COMMISSIONING,FAR LANE MEDICAL CENTRE,32473589,920.20,PRC DELEGATED CO-COMMISSIONING,S6 4FA
Department of Health,NHS Sheffield CCG,5/31/2020,C&M-GMS Prem Notional Rent,PRC DELEGATED CO-COMMISSIONING,FAR LANE MEDICAL CENTRE,32473589,"3,462.50",PRC DELEGATED CO-COMMISSIONING,S6 4FA
Department of Health,NHS Sheffield CCG,5/31/2020,C&M-GMS Prem Water Rates,PRC DELEGATED CO-COMMISSIONING,FAR LANE MEDICAL CENTRE,32473589,50.93,PRC DELEGATED CO-COMMISSIONING,S6 4FA
Department of Health,NHS Sheffield CCG,5/31/2020,C&M-GMS Prof Fees Prescribing,PRC DELEGATED CO-COMMISSIONING,FAR LANE MEDICAL CENTRE,32473589,28.97,PRC DELEGATED CO-COMMISSIONING,S6 4FA
Department of Health,NHS Sheffield CCG,5/31/2020,C&M-GMS QOF Aspiration,PRC DELEGATED CO-COMMISSIONING,FAR LANE MEDICAL CENTRE,32473589,"5,719.80",PRC DELEGATED CO-COMMISSIONING,S6 4FA
Department of Health,NHS Sheffield CCG,5/31/2020,C&M-PMS Contract Value,PRC DELEGATED CO-COMMISSIONING,FIRTH PARK SURGERY,32288944,"74,484.92",PRC DELEGATED CO-COMMISSIONING,S5 6HH
Department of Health,NHS Sheffield CCG,5/31/2020,C&M-PMS GP Statutory Levy,PRC DELEGATED CO-COMMISSIONING,FIRTH PARK SURGERY,32288944,0.91,PRC DELEGATED CO-COMMISSIONING,S5 6HH
Department of Health,NHS Sheffield CCG,5/31/2020,C&M-PMS PCN DES Participation,PRC DELEGATED CO-COMMISSIONING,FIRTH PARK SURGERY,32288944,"1,453.48",PRC DELEGATED CO-COMMISSIONING,S5 6HH
Department of Health,NHS Sheffield CCG,5/31/2020,C&M-PMS PCO Locum Sickness,PRC DELEGATED CO-COMMISSIONING,FIRTH PARK SURGERY,32288944,"4,934.11",PRC DELEGATED CO-COMMISSIONING,S5 6HH
Department of Health,NHS Sheffield CCG,5/31/2020,C&M-PMS Prem Notional Rent,PRC DELEGATED CO-COMMISSIONING,FIRTH PARK SURGERY,32288944,"4,500.00",PRC DELEGATED CO-COMMISSIONING,S5 6HH
Department of Health,NHS Sheffield CCG,5/31/2020,C&M-PMS QOF Aspiration,PRC DELEGATED CO-COMMISSIONING,FIRTH PARK SURGERY,32288944,"7,493.92",PRC DELEGATED CO-COMMISSIONING,S5 6HH
Department of Health,NHS Sheffield CCG,5/31/2020,C&M-PCN DES Support Payment,PRC DELEGATED CO-COMMISSIONING,FORGE HEALTH GROUP,32314235,"5,260.04",PRC DELEGATED CO-COMMISSIONING,S3 9DL
Department of Health,NHS Sheffield CCG,5/31/2020,C&M-PMS Contract Value,PRC DELEGATED CO-COMMISSIONING,FORGE HEALTH GROUP,32314235,"119,112.67",PRC DELEGATED CO-COMMISSIONING,S3 9DL
Department of Health,NHS Sheffield CCG,5/31/2020,C&M-PMS DES Extended Hours Access,PRC DELEGATED CO-COMMISSIONING,FORGE HEALTH GROUP,32314235,"6,849.44",PRC DELEGATED CO-COMMISSIONING,S3 9DL
Department of Health,NHS Sheffield CCG,5/31/2020,C&M-PMS PCN DES Clinical Director,PRC DELEGATED CO-COMMISSIONING,FORGE HEALTH GROUP,32314235,"3,410.55",PRC DELEGATED CO-COMMISSIONING,S3 9DL
Department of Health,NHS Sheffield CCG,5/31/2020,C&M-PMS PCN DES PCN support,LOCAL ENHANCED SERVICES,FORGE HEALTH GROUP,32314235,"7,085.63",LOCAL ENHANCED SERVICES,S3 9DL
Department of Health,NHS Sheffield CCG,5/31/2020,C&M-PMS PCN DES Participation,PRC DELEGATED CO-COMMISSIONING,FORGE HEALTH GROUP,32314235,"2,286.18",PRC DELEGATED CO-COMMISSIONING,S3 9DL
Department of Health,NHS Sheffield CCG,5/31/2020,C&M-PMS Prem Healthcentre Rent,PRC DELEGATED CO-COMMISSIONING,FORGE HEALTH GROUP,32314235,"33,928.01",PRC DELEGATED CO-COMMISSIONING,S3 9DL
Department of Health,NHS Sheffield CCG,5/31/2020,C&M-PMS Prem Notional Rent,PRC DELEGATED CO-COMMISSIONING,FORGE HEALTH GROUP,32314235,"9,650.00",PRC DELEGATED CO-COMMISSIONING,S3 9DL
Department of Health,NHS Sheffield CCG,5/31/2020,C&M-PMS QOF Aspiration,PRC DELEGATED CO-COMMISSIONING,FORGE HEALTH GROUP,32314235,"6,964.24",PRC DELEGATED CO-COMMISSIONING,S3 9DL
Department of Health,NHS Sheffield CCG,5/31/2020,C&M-PMS Contract Value,PRC DELEGATED CO-COMMISSIONING,FOXHILL MEDICAL CENTRE SHEFFIELD,32289988,"51,760.92",PRC DELEGATED CO-COMMISSIONING,S6 1GA
Department of Health,NHS Sheffield CCG,5/31/2020,C&M-PMS GP Statutory Levy,PRC DELEGATED CO-COMMISSIONING,FOXHILL MEDICAL CENTRE SHEFFIELD,32289988,1.23,PRC DELEGATED CO-COMMISSIONING,S6 1GA
Department of Health,NHS Sheffield CCG,5/31/2020,C&M-PMS PCN DES Participation,PRC DELEGATED CO-COMMISSIONING,FOXHILL MEDICAL CENTRE SHEFFIELD,32289988,980.95,PRC DELEGATED CO-COMMISSIONING,S6 1GA
Department of Health,NHS Sheffield CCG,5/31/2020,C&M-PMS Prem Healthcentre Rent,PRC DELEGATED CO-COMMISSIONING,FOXHILL MEDICAL CENTRE SHEFFIELD,32289988,"46,647.08",PRC DELEGATED CO-COMMISSIONING,S6 1GA
Department of Health,NHS Sheffield CCG,5/31/2020,C&M-PMS QOF Aspiration,PRC DELEGATED CO-COMMISSIONING,FOXHILL MEDICAL CENTRE SHEFFIELD,32289988,"5,618.87",PRC DELEGATED CO-COMMISSIONING,S6 1GA
Department of Health,NHS Sheffield CCG,5/31/2020,C&M-PMS Contract Value,PRC DELEGATED CO-COMMISSIONING,GLEADLESS MEDICAL CENTRE,32288948,"69,389.67",PRC DELEGATED CO-COMMISSIONING,S14 1PQ
Department of Health,NHS Sheffield CCG,5/31/2020,C&M-PMS GP Statutory Levy,PRC DELEGATED CO-COMMISSIONING,GLEADLESS MEDICAL CENTRE,32288948,0.07,PRC DELEGATED CO-COMMISSIONING,S14 1PQ
Department of Health,NHS Sheffield CCG,5/31/2020,C&M-PMS PCN DES Participation,PRC DELEGATED CO-COMMISSIONING,GLEADLESS MEDICAL CENTRE,32288948,"1,315.26",PRC DELEGATED CO-COMMISSIONING,S14 1PQ
Department of Health,NHS Sheffield CCG,5/31/2020,C&M-PMS PCO Other,PRC DELEGATED CO-COMMISSIONING,GLEADLESS MEDICAL CENTRE,32288948,"1,118.40",PRC DELEGATED CO-COMMISSIONING,S14 1PQ
Department of Health,NHS Sheffield CCG,5/31/2020,C&M-PMS Prem Notional Rent,PRC DELEGATED CO-COMMISSIONING,GLEADLESS MEDICAL CENTRE,32288948,"6,750.00",PRC DELEGATED CO-COMMISSIONING,S14 1PQ
Department of Health,NHS Sheffield CCG,5/31/2020,C&M-PMS Prem Rates,PRC DELEGATED CO-COMMISSIONING,GLEADLESS MEDICAL CENTRE,32288948,"1,684.00",PRC DELEGATED CO-COMMISSIONING,S14 1PQ
Department of Health,NHS Sheffield CCG,5/31/2020,C&M-PMS QOF Aspiration,PRC DELEGATED CO-COMMISSIONING,GLEADLESS MEDICAL CENTRE,32288948,"7,710.90",PRC DELEGATED CO-COMMISSIONING,S14 1PQ
Department of Health,NHS Sheffield CCG,5/31/2020,C&M-GMS Cost of Drugs -Prescribing,LOCAL ENHANCED SERVICES,GRENOSIDE SURGERY,32473597,"1,575.07",LOCAL ENHANCED SERVICES,S35 8NX
Department of Health,NHS Sheffield CCG,5/31/2020,C&M-GMS DES Minor Surgery,PRC DELEGATED CO-COMMISSIONING,GRENOSIDE SURGERY,32473597,585.00,PRC DELEGATED CO-COMMISSIONING,S35 8NX
Department of Health,NHS Sheffield CCG,5/31/2020,C&M-GMS Global Sum,PRC DELEGATED CO-COMMISSIONING,GRENOSIDE SURGERY,32473597,"62,273.39",PRC DELEGATED CO-COMMISSIONING,S35 8NX
Department of Health,NHS Sheffield CCG,5/31/2020,C&M-GMS PCN DES Participation,PRC DELEGATED CO-COMMISSIONING,GRENOSIDE SURGERY,32473597,"1,220.08",PRC DELEGATED CO-COMMISSIONING,S35 8NX
Department of Health,NHS Sheffield CCG,5/31/2020,C&M-GMS Prem Notional Rent,PRC DELEGATED CO-COMMISSIONING,GRENOSIDE SURGERY,32473597,"8,110.42",PRC DELEGATED CO-COMMISSIONING,S35 8NX
Department of Health,NHS Sheffield CCG,5/31/2020,C&M-GMS Prem Water Rates,PRC DELEGATED CO-COMMISSIONING,GRENOSIDE SURGERY,32473597,132.02,PRC DELEGATED CO-COMMISSIONING,S35 8NX
Department of Health,NHS Sheffield CCG,5/31/2020,C&M-GMS Prof Fees Prescribing,PRC DELEGATED CO-COMMISSIONING,GRENOSIDE SURGERY,32473597,97.26,PRC DELEGATED CO-COMMISSIONING,S35 8NX
Department of Health,NHS Sheffield CCG,5/31/2020,C&M-GMS QOF Aspiration,PRC DELEGATED CO-COMMISSIONING,GRENOSIDE SURGERY,32473597,"5,686.85",PRC DELEGATED CO-COMMISSIONING,S35 8NX
Department of Health,NHS Sheffield CCG,5/31/2020,C&M-GMS Cost of Drugs -Prescribing,LOCAL ENHANCED SERVICES,GREYSTONES MEDICAL CENTRE,32473599,66.00,LOCAL ENHANCED SERVICES,S11 7BJ
Department of Health,NHS Sheffield CCG,5/31/2020,C&M-GMS DES Minor Surgery,PRC DELEGATED CO-COMMISSIONING,GREYSTONES MEDICAL CENTRE,32473599,375.00,PRC DELEGATED CO-COMMISSIONING,S11 7BJ
Department of Health,NHS Sheffield CCG,5/31/2020,C&M-GMS Global Sum,PRC DELEGATED CO-COMMISSIONING,GREYSTONES MEDICAL CENTRE,32473599,"20,367.90",PRC DELEGATED CO-COMMISSIONING,S11 7BJ
Department of Health,NHS Sheffield CCG,5/31/2020,C&M-GMS PCN DES Participation,PRC DELEGATED CO-COMMISSIONING,GREYSTONES MEDICAL CENTRE,32473599,406.83,PRC DELEGATED CO-COMMISSIONING,S11 7BJ
Department of Health,NHS Sheffield CCG,5/31/2020,C&M-GMS PCO Other,PRC DELEGATED CO-COMMISSIONING,GREYSTONES MEDICAL CENTRE,32473599,528.40,PRC DELEGATED CO-COMMISSIONING,S11 7BJ
Department of Health,NHS Sheffield CCG,5/31/2020,C&M-GMS Prem Notional Rent,PRC DELEGATED CO-COMMISSIONING,GREYSTONES MEDICAL CENTRE,32473599,"2,885.42",PRC DELEGATED CO-COMMISSIONING,S11 7BJ
Department of Health,NHS Sheffield CCG,5/31/2020,C&M-GMS Prem Rates,PRC DELEGATED CO-COMMISSIONING,GREYSTONES MEDICAL CENTRE,32473599,707.00,PRC DELEGATED CO-COMMISSIONING,S11 7BJ
Department of Health,NHS Sheffield CCG,5/31/2020,C&M-GMS Prof Fees Prescribing,PRC DELEGATED CO-COMMISSIONING,GREYSTONES MEDICAL CENTRE,32473599,14.48,PRC DELEGATED CO-COMMISSIONING,S11 7BJ
Department of Health,NHS Sheffield CCG,5/31/2020,C&M-GMS QOF Aspiration,PRC DELEGATED CO-COMMISSIONING,GREYSTONES MEDICAL CENTRE,32473599,"2,314.72",PRC DELEGATED CO-COMMISSIONING,S11 7BJ
Department of Health,NHS Sheffield CCG,5/31/2020,C&M-PMS Contract Value,PRC DELEGATED CO-COMMISSIONING,HACKENTHORPE MEDICAL CENTRE,32288950,"48,638.08",PRC DELEGATED CO-COMMISSIONING,S12 4LA
Department of Health,NHS Sheffield CCG,5/31/2020,C&M-PMS PCN DES Participation,PRC DELEGATED CO-COMMISSIONING,HACKENTHORPE MEDICAL CENTRE,32288950,925.92,PRC DELEGATED CO-COMMISSIONING,S12 4LA
Department of Health,NHS Sheffield CCG,5/31/2020,C&M-PMS PCO Other,PRC DELEGATED CO-COMMISSIONING,HACKENTHORPE MEDICAL CENTRE,32288950,871.40,PRC DELEGATED CO-COMMISSIONING,S12 4LA
Department of Health,NHS Sheffield CCG,5/31/2020,C&M-PMS Prem Notional Rent,PRC DELEGATED CO-COMMISSIONING,HACKENTHORPE MEDICAL CENTRE,32288950,"5,116.67",PRC DELEGATED CO-COMMISSIONING,S12 4LA
Department of Health,NHS Sheffield CCG,5/31/2020,C&M-PMS Prem Rates,PRC DELEGATED CO-COMMISSIONING,HACKENTHORPE MEDICAL CENTRE,32288950,"2,767.25",PRC DELEGATED CO-COMMISSIONING,S12 4LA
Department of Health,NHS Sheffield CCG,5/31/2020,C&M-PMS Prem Water Rates,PRC DELEGATED CO-COMMISSIONING,HACKENTHORPE MEDICAL CENTRE,32288950,253.49,PRC DELEGATED CO-COMMISSIONING,S12 4LA
Department of Health,NHS Sheffield CCG,5/31/2020,C&M-PMS QOF Aspiration,PRC DELEGATED CO-COMMISSIONING,HACKENTHORPE MEDICAL CENTRE,32288950,"6,528.39",PRC DELEGATED CO-COMMISSIONING,S12 4LA
Department of Health,NHS Sheffield CCG,5/31/2020,C&M-GMS Cost of Drugs -Prescribing,LOCAL ENHANCED SERVICES,HANDSWORTH MEDICAL PRACTICE SHEFFIELD,32473595,948.55,LOCAL ENHANCED SERVICES,S13 9BZ
Department of Health,NHS Sheffield CCG,5/31/2020,C&M-GMS DES Minor Surgery,PRC DELEGATED CO-COMMISSIONING,HANDSWORTH MEDICAL PRACTICE SHEFFIELD,32473595,415.00,PRC DELEGATED CO-COMMISSIONING,S13 9BZ
Department of Health,NHS Sheffield CCG,5/31/2020,C&M-GMS Global Sum,PRC DELEGATED CO-COMMISSIONING,HANDSWORTH MEDICAL PRACTICE SHEFFIELD,32473595,"81,694.44",PRC DELEGATED CO-COMMISSIONING,S13 9BZ
Department of Health,NHS Sheffield CCG,5/31/2020,C&M-GMS PCN DES Participation,PRC DELEGATED CO-COMMISSIONING,HANDSWORTH MEDICAL PRACTICE SHEFFIELD,32473595,"1,599.78",PRC DELEGATED CO-COMMISSIONING,S13 9BZ
Department of Health,NHS Sheffield CCG,5/31/2020,C&M-GMS PCO Other,PRC DELEGATED CO-COMMISSIONING,HANDSWORTH MEDICAL PRACTICE SHEFFIELD,32473595,"6,359.00",PRC DELEGATED CO-COMMISSIONING,S13 9BZ
Department of Health,NHS Sheffield CCG,5/31/2020,C&M-GMS Prem Notional Rent,PRC DELEGATED CO-COMMISSIONING,HANDSWORTH MEDICAL PRACTICE SHEFFIELD,32473595,"3,321.66",PRC DELEGATED CO-COMMISSIONING,S13 9BZ
Department of Health,NHS Sheffield CCG,5/31/2020,C&M-GMS Prem Rates,PRC DELEGATED CO-COMMISSIONING,HANDSWORTH MEDICAL PRACTICE SHEFFIELD,32473595,"2,600.55",PRC DELEGATED CO-COMMISSIONING,S13 9BZ
Department of Health,NHS Sheffield CCG,5/31/2020,C&M-GMS Prof Fees Prescribing,PRC DELEGATED CO-COMMISSIONING,HANDSWORTH MEDICAL PRACTICE SHEFFIELD,32473595,208.97,PRC DELEGATED CO-COMMISSIONING,S13 9BZ
Department of Health,NHS Sheffield CCG,5/31/2020,C&M-GMS QOF Aspiration,PRC DELEGATED CO-COMMISSIONING,HANDSWORTH MEDICAL PRACTICE SHEFFIELD,32473595,"7,811.29",PRC DELEGATED CO-COMMISSIONING,S13 9BZ
Department of Health,NHS Sheffield CCG,5/31/2020,C&M-GMS Global Sum,PRC DELEGATED CO-COMMISSIONING,HAROLD STREET MEDICAL CENTRE,32473592,"20,162.42",PRC DELEGATED CO-COMMISSIONING,S6 3QW
Department of Health,NHS Sheffield CCG,5/31/2020,C&M-GMS PCN DES Participation,PRC DELEGATED CO-COMMISSIONING,HAROLD STREET MEDICAL CENTRE,32473592,405.11,PRC DELEGATED CO-COMMISSIONING,S6 3QW
Department of Health,NHS Sheffield CCG,5/31/2020,C&M-GMS Prem Notional Rent,PRC DELEGATED CO-COMMISSIONING,HAROLD STREET MEDICAL CENTRE,32473592,"2,337.50",PRC DELEGATED CO-COMMISSIONING,S6 3QW
Department of Health,NHS Sheffield CCG,5/31/2020,C&M-GMS QOF Aspiration,PRC DELEGATED CO-COMMISSIONING,HAROLD STREET MEDICAL CENTRE,32473592,"2,228.59",PRC DELEGATED CO-COMMISSIONING,S6 3QW
Department of Health,NHS Sheffield CCG,5/31/2020,Cont Care-Physical Disab (<65),CHC ADULT FULLY FUNDED,HC ONE LTD,32426436,"34,975.82",CHC SCHEDULE MAY 2020 - Ascot Lodge Nursing Home (HC One),DL3 6AH
Department of Health,NHS Sheffield CCG,5/31/2020,C&M-GMS Cost of Drugs -Prescribing,LOCAL ENHANCED SERVICES,HEALTH CARE SURGERY,32473605,655.84,LOCAL ENHANCED SERVICES,S5 8GS
Department of Health,NHS Sheffield CCG,5/31/2020,C&M-GMS DES Minor Surgery,PRC DELEGATED CO-COMMISSIONING,HEALTH CARE SURGERY,32473605,280.00,PRC DELEGATED CO-COMMISSIONING,S5 8GS
Department of Health,NHS Sheffield CCG,5/31/2020,C&M-GMS Global Sum,PRC DELEGATED CO-COMMISSIONING,HEALTH CARE SURGERY,32473605,"40,870.32",PRC DELEGATED CO-COMMISSIONING,S5 8GS
Department of Health,NHS Sheffield CCG,5/31/2020,C&M-GMS PCN DES Participation,PRC DELEGATED CO-COMMISSIONING,HEALTH CARE SURGERY,32473605,802.32,PRC DELEGATED CO-COMMISSIONING,S5 8GS
Department of Health,NHS Sheffield CCG,5/31/2020,C&M-GMS PCO Other,PRC DELEGATED CO-COMMISSIONING,HEALTH CARE SURGERY,32473605,674.00,PRC DELEGATED CO-COMMISSIONING,S5 8GS
Department of Health,NHS Sheffield CCG,5/31/2020,C&M-GMS Prem Notional Rent,PRC DELEGATED CO-COMMISSIONING,HEALTH CARE SURGERY,32473605,"3,862.50",PRC DELEGATED CO-COMMISSIONING,S5 8GS
Department of Health,NHS Sheffield CCG,5/31/2020,C&M-GMS Prem Rates,PRC DELEGATED CO-COMMISSIONING,HEALTH CARE SURGERY,32473605,755.00,PRC DELEGATED CO-COMMISSIONING,S5 8GS
Department of Health,NHS Sheffield CCG,5/31/2020,C&M-GMS Prof Fees Prescribing,PRC DELEGATED CO-COMMISSIONING,HEALTH CARE SURGERY,32473605,105.52,PRC DELEGATED CO-COMMISSIONING,S5 8GS
Department of Health,NHS Sheffield CCG,5/31/2020,C&M-GMS QOF Aspiration,PRC DELEGATED CO-COMMISSIONING,HEALTH CARE SURGERY,32473605,"4,056.36",PRC DELEGATED CO-COMMISSIONING,S5 8GS
Department of Health,NHS Sheffield CCG,5/31/2020,C&M-GMS Cost of Drugs -Prescribing,LOCAL ENHANCED SERVICES,HEELEY GREEN SURGERY,32473601,950.72,LOCAL ENHANCED SERVICES,S2 3AJ
Department of Health,NHS Sheffield CCG,5/31/2020,C&M-GMS Global Sum,PRC DELEGATED CO-COMMISSIONING,HEELEY GREEN SURGERY,32473601,"42,858.71",PRC DELEGATED CO-COMMISSIONING,S2 3AJ
Department of Health,NHS Sheffield CCG,5/31/2020,C&M-GMS PCN DES Participation,PRC DELEGATED CO-COMMISSIONING,HEELEY GREEN SURGERY,32473601,857.46,PRC DELEGATED CO-COMMISSIONING,S2 3AJ
Department of Health,NHS Sheffield CCG,5/31/2020,C&M-GMS Prem Notional Rent,PRC DELEGATED CO-COMMISSIONING,HEELEY GREEN SURGERY,32473601,"3,254.17",PRC DELEGATED CO-COMMISSIONING,S2 3AJ
Department of Health,NHS Sheffield CCG,5/31/2020,C&M-GMS Prof Fees Prescribing,PRC DELEGATED CO-COMMISSIONING,HEELEY GREEN SURGERY,32473601,84.82,PRC DELEGATED CO-COMMISSIONING,S2 3AJ
Department of Health,NHS Sheffield CCG,5/31/2020,C&M-GMS QOF Aspiration,PRC DELEGATED CO-COMMISSIONING,HEELEY GREEN SURGERY,32473601,"4,709.02",PRC DELEGATED CO-COMMISSIONING,S2 3AJ
Department of Health,NHS Sheffield CCG,5/31/2020,C&M-GMS Cost of Drugs -Prescribing,LOCAL ENHANCED SERVICES,HOLLIES MEDICAL CENTRE,32473603,668.20,LOCAL ENHANCED SERVICES,S11 9AL
Department of Health,NHS Sheffield CCG,5/31/2020,C&M-GMS DES Minor Surgery,PRC DELEGATED CO-COMMISSIONING,HOLLIES MEDICAL CENTRE,32473603,535.00,PRC DELEGATED CO-COMMISSIONING,S11 9AL
Department of Health,NHS Sheffield CCG,5/31/2020,C&M-GMS Global Sum,PRC DELEGATED CO-COMMISSIONING,HOLLIES MEDICAL CENTRE,32473603,"64,319.97",PRC DELEGATED CO-COMMISSIONING,S11 9AL
Department of Health,NHS Sheffield CCG,5/31/2020,C&M-GMS PCN DES Participation,PRC DELEGATED CO-COMMISSIONING,HOLLIES MEDICAL CENTRE,32473603,"1,246.56",PRC DELEGATED CO-COMMISSIONING,S11 9AL
Department of Health,NHS Sheffield CCG,5/31/2020,C&M-GMS Prem Notional Rent,PRC DELEGATED CO-COMMISSIONING,HOLLIES MEDICAL CENTRE,32473603,"3,229.17",PRC DELEGATED CO-COMMISSIONING,S11 9AL
Department of Health,NHS Sheffield CCG,5/31/2020,C&M-GMS Prof Fees Prescribing,PRC DELEGATED CO-COMMISSIONING,HOLLIES MEDICAL CENTRE,32473603,97.26,PRC DELEGATED CO-COMMISSIONING,S11 9AL
Department of Health,NHS Sheffield CCG,5/31/2020,C&M-GMS QOF Aspiration,PRC DELEGATED CO-COMMISSIONING,HOLLIES MEDICAL CENTRE,32473603,"6,991.81",PRC DELEGATED CO-COMMISSIONING,S11 9AL
Department of Health,NHS Sheffield CCG,5/31/2020,Cont Care-Physical Disab (<65),CHC ADULT FULLY FUNDED,HORIZON CARE HOMES LTD,32426400,"28,053.14",CHC SCHEDULE MAY 2020 - Wood Hill Grange (Horizon Care Homes),S25 3QA
Department of Health,NHS Sheffield CCG,5/31/2020,Cont Care-Physical Disab (<65),CHC ADULT FULLY FUNDED,HORIZON CARE HOMES LTD,32426484,"34,027.32",CHC SCHEDULE MAY 2020 - Wood Hill House,S25 3QA
Department of Health,NHS Sheffield CCG,5/31/2020,Cont Care-Physical Disab (<65),CHC ADULT FULLY FUNDED,HORIZON CARE HOMES LTD,32426489,"56,229.22",CHC SCHEDULE MAY 2020 - Wood Hill Lodge,S25 3QA
Department of Health,NHS Sheffield CCG,5/31/2020,C&M-PCN DES Support Payment,PRC DELEGATED CO-COMMISSIONING,JAUNTY SPRINGS HEALTH CENTRE,32314231,"3,279.04",PRC DELEGATED CO-COMMISSIONING,S12 3DZ
Department of Health,NHS Sheffield CCG,5/31/2020,C&M-PMS Contract Value,PRC DELEGATED CO-COMMISSIONING,JAUNTY SPRINGS HEALTH CENTRE,32314231,"31,178.75",PRC DELEGATED CO-COMMISSIONING,S12 3DZ
Department of Health,NHS Sheffield CCG,5/31/2020,C&M-PMS DES Extended Hours Access,PRC DELEGATED CO-COMMISSIONING,JAUNTY SPRINGS HEALTH CENTRE,32314231,"4,214.06",PRC DELEGATED CO-COMMISSIONING,S12 3DZ
Department of Health,NHS Sheffield CCG,5/31/2020,C&M-PMS PCN DES Clinical Director,PRC DELEGATED CO-COMMISSIONING,JAUNTY SPRINGS HEALTH CENTRE,32314231,"2,098.31",PRC DELEGATED CO-COMMISSIONING,S12 3DZ
Department of Health,NHS Sheffield CCG,5/31/2020,C&M-PMS PCN DES PCN support,LOCAL ENHANCED SERVICES,JAUNTY SPRINGS HEALTH CENTRE,32314231,"4,359.38",LOCAL ENHANCED SERVICES,S12 3DZ
Department of Health,NHS Sheffield CCG,5/31/2020,C&M-PMS PCN DES Participation,PRC DELEGATED CO-COMMISSIONING,JAUNTY SPRINGS HEALTH CENTRE,32314231,592.79,PRC DELEGATED CO-COMMISSIONING,S12 3DZ
Department of Health,NHS Sheffield CCG,5/31/2020,C&M-PMS PCO Other,PRC DELEGATED CO-COMMISSIONING,JAUNTY SPRINGS HEALTH CENTRE,32314231,533.20,PRC DELEGATED CO-COMMISSIONING,S12 3DZ
Department of Health,NHS Sheffield CCG,5/31/2020,C&M-PMS Prem Notional Rent,PRC DELEGATED CO-COMMISSIONING,JAUNTY SPRINGS HEALTH CENTRE,32314231,"3,208.33",PRC DELEGATED CO-COMMISSIONING,S12 3DZ
Department of Health,NHS Sheffield CCG,5/31/2020,C&M-PMS Prem Rates,PRC DELEGATED CO-COMMISSIONING,JAUNTY SPRINGS HEALTH CENTRE,32314231,830.00,PRC DELEGATED CO-COMMISSIONING,S12 3DZ
Department of Health,NHS Sheffield CCG,5/31/2020,C&M-PMS QOF Aspiration,PRC DELEGATED CO-COMMISSIONING,JAUNTY SPRINGS HEALTH CENTRE,32314231,"4,020.11",PRC DELEGATED CO-COMMISSIONING,S12 3DZ
Department of Health,NHS Sheffield CCG,5/31/2020,Hcare Srv Rec NHS Trust-Contract Baseline,ACUTE COMMISSIONING,LEEDS TEACHING HOSPITALS NHS TRUST,32303338,"47,860.51",ACUTE COMMISSIONING,LS9 7TF
Department of Health,NHS Sheffield CCG,5/31/2020,Clinical&Medical-Independent Sector,MENTAL HEALTH SERVICES - OTHER,LISTENING EAR (MERSEYSIDE),32379699,"31,971.06",MENTAL HEALTH SERVICES - OTHER,L26 6LB
Department of Health,NHS Sheffield CCG,5/31/2020,Cont Care-Physical Disab (<65),CHC ADULT FULLY FUNDED,LONGLEY HEALTH CARE LTD,32426288,"86,497.22",CHC SCHEDULE MAY 2020 - Longley Park View Nursing Home (Exemplar HC),S5 7JZ
Department of Health,NHS Sheffield CCG,5/31/2020,C&M-PMS Contract Value,PRC DELEGATED CO-COMMISSIONING,MANCHESTER ROAD SURGERY SHEFFIELD,32288955,"33,169.83",PRC DELEGATED CO-COMMISSIONING,S10 5PN
Department of Health,NHS Sheffield CCG,5/31/2020,C&M-PMS GP Statutory Levy,PRC DELEGATED CO-COMMISSIONING,MANCHESTER ROAD SURGERY SHEFFIELD,32288955,0.18,PRC DELEGATED CO-COMMISSIONING,S10 5PN
Department of Health,NHS Sheffield CCG,5/31/2020,C&M-PMS PCN DES Participation,PRC DELEGATED CO-COMMISSIONING,MANCHESTER ROAD SURGERY SHEFFIELD,32288955,631.34,PRC DELEGATED CO-COMMISSIONING,S10 5PN
Department of Health,NHS Sheffield CCG,5/31/2020,C&M-PMS Prem Cost Rent,PRC DELEGATED CO-COMMISSIONING,MANCHESTER ROAD SURGERY SHEFFIELD,32288955,"3,091.46",PRC DELEGATED CO-COMMISSIONING,S10 5PN
Department of Health,NHS Sheffield CCG,5/31/2020,C&M-PMS Prem Notional Rent,PRC DELEGATED CO-COMMISSIONING,MANCHESTER ROAD SURGERY SHEFFIELD,32288955,442.92,PRC DELEGATED CO-COMMISSIONING,S10 5PN
Department of Health,NHS Sheffield CCG,5/31/2020,C&M-PMS Prem Rates,PRC DELEGATED CO-COMMISSIONING,MANCHESTER ROAD SURGERY SHEFFIELD,32288955,986.00,PRC DELEGATED CO-COMMISSIONING,S10 5PN
Department of Health,NHS Sheffield CCG,5/31/2020,C&M-PMS QOF Aspiration,PRC DELEGATED CO-COMMISSIONING,MANCHESTER ROAD SURGERY SHEFFIELD,32288955,"3,985.36",PRC DELEGATED CO-COMMISSIONING,S10 5PN
Department of Health,NHS Sheffield CCG,5/31/2020,Hcare Srv Rec Fdtn Trust-Contract Baseline,ACUTE COMMISSIONING,MANCHESTER UNIVERSITY NHS FOUNDATION TRUST,32303336,"25,929.20",ACUTE COMMISSIONING,M41 5SL
Department of Health,NHS Sheffield CCG,5/31/2020,C&M-PMS Contract Value,PRC DELEGATED CO-COMMISSIONING,MANOR & PARK GROUP PRACTICE,32297371,"70,956.83",PRC DELEGATED CO-COMMISSIONING,S2 5QQ
Department of Health,NHS Sheffield CCG,5/31/2020,C&M-PMS GP Statutory Levy,PRC DELEGATED CO-COMMISSIONING,MANOR & PARK GROUP PRACTICE,32297371,6.41,PRC DELEGATED CO-COMMISSIONING,S2 5QQ
Department of Health,NHS Sheffield CCG,5/31/2020,C&M-PMS PCN DES Participation,PRC DELEGATED CO-COMMISSIONING,MANOR & PARK GROUP PRACTICE,32297371,"1,387.49",PRC DELEGATED CO-COMMISSIONING,S2 5QQ
Department of Health,NHS Sheffield CCG,5/31/2020,C&M-PMS Prem Notional Rent,PRC DELEGATED CO-COMMISSIONING,MANOR & PARK GROUP PRACTICE,32297371,"9,050.00",PRC DELEGATED CO-COMMISSIONING,S2 5QQ
Department of Health,NHS Sheffield CCG,5/31/2020,C&M-PMS Prem Rates,PRC DELEGATED CO-COMMISSIONING,MANOR & PARK GROUP PRACTICE,32297371,"1,864.00",PRC DELEGATED CO-COMMISSIONING,S2 5QQ
Department of Health,NHS Sheffield CCG,5/31/2020,C&M-PMS QOF Aspiration,PRC DELEGATED CO-COMMISSIONING,MANOR & PARK GROUP PRACTICE,32297371,"7,420.75",PRC DELEGATED CO-COMMISSIONING,S2 5QQ
Department of Health,NHS Sheffield CCG,5/31/2020,C&M-GMS Cost of Drugs -Prescribing,LOCAL ENHANCED SERVICES,MATHEWS PRACTICE,32473613,258.20,LOCAL ENHANCED SERVICES,S2 4UJ
Department of Health,NHS Sheffield CCG,5/31/2020,C&M-GMS DES Minor Surgery,PRC DELEGATED CO-COMMISSIONING,MATHEWS PRACTICE,32473613,"1,780.00",PRC DELEGATED CO-COMMISSIONING,S2 4UJ
Department of Health,NHS Sheffield CCG,5/31/2020,C&M-GMS Global Sum,PRC DELEGATED CO-COMMISSIONING,MATHEWS PRACTICE,32473613,"59,691.47",PRC DELEGATED CO-COMMISSIONING,S2 4UJ
Department of Health,NHS Sheffield CCG,5/31/2020,C&M-GMS PCN DES Participation,PRC DELEGATED CO-COMMISSIONING,MATHEWS PRACTICE,32473613,"1,189.39",PRC DELEGATED CO-COMMISSIONING,S2 4UJ
Department of Health,NHS Sheffield CCG,5/31/2020,C&M-GMS Prem Rates,PRC DELEGATED CO-COMMISSIONING,MATHEWS PRACTICE,32473613,"2,183.00",PRC DELEGATED CO-COMMISSIONING,S2 4UJ
Department of Health,NHS Sheffield CCG,5/31/2020,C&M-GMS Prof Fees Prescribing,PRC DELEGATED CO-COMMISSIONING,MATHEWS PRACTICE,32473613,140.70,PRC DELEGATED CO-COMMISSIONING,S2 4UJ
Department of Health,NHS Sheffield CCG,5/31/2020,C&M-GMS QOF Aspiration,PRC DELEGATED CO-COMMISSIONING,MATHEWS PRACTICE,32473613,"7,156.84",PRC DELEGATED CO-COMMISSIONING,S2 4UJ
Department of Health,NHS Sheffield CCG,5/31/2020,C&M-PMS Contract Value,PRC DELEGATED CO-COMMISSIONING,MEADOWHEAD GROUP PRACTICE,32288953,"73,065.42",PRC DELEGATED CO-COMMISSIONING,S8 7RL
Department of Health,NHS Sheffield CCG,5/31/2020,C&M-PMS GP Statutory Levy,PRC DELEGATED CO-COMMISSIONING,MEADOWHEAD GROUP PRACTICE,32288953,1.33,PRC DELEGATED CO-COMMISSIONING,S8 7RL
Department of Health,NHS Sheffield CCG,5/31/2020,C&M-PMS PCN DES Participation,PRC DELEGATED CO-COMMISSIONING,MEADOWHEAD GROUP PRACTICE,32288953,"1,384.54",PRC DELEGATED CO-COMMISSIONING,S8 7RL
Department of Health,NHS Sheffield CCG,5/31/2020,C&M-PMS Prem Cost Rent,PRC DELEGATED CO-COMMISSIONING,MEADOWHEAD GROUP PRACTICE,32288953,"3,647.42",PRC DELEGATED CO-COMMISSIONING,S8 7RL
Department of Health,NHS Sheffield CCG,5/31/2020,C&M-PMS Prem Notional Rent,PRC DELEGATED CO-COMMISSIONING,MEADOWHEAD GROUP PRACTICE,32288953,"3,358.33",PRC DELEGATED CO-COMMISSIONING,S8 7RL
Department of Health,NHS Sheffield CCG,5/31/2020,C&M-PMS Prem Rates,PRC DELEGATED CO-COMMISSIONING,MEADOWHEAD GROUP PRACTICE,32288953,"3,934.02",PRC DELEGATED CO-COMMISSIONING,S8 7RL
Department of Health,NHS Sheffield CCG,5/31/2020,C&M-PMS QOF Aspiration,PRC DELEGATED CO-COMMISSIONING,MEADOWHEAD GROUP PRACTICE,32288953,"9,076.52",PRC DELEGATED CO-COMMISSIONING,S8 7RL
Department of Health,NHS Sheffield CCG,5/31/2020,C&M-GMS Cost of Drugs -Prescribing,LOCAL ENHANCED SERVICES,MEDICAL CENTRE CRYSTAL PEAKS,32473609,937.10,LOCAL ENHANCED SERVICES,S20 7HZ
Department of Health,NHS Sheffield CCG,5/31/2020,C&M-GMS DES Minor Surgery,PRC DELEGATED CO-COMMISSIONING,MEDICAL CENTRE CRYSTAL PEAKS,32473609,"3,245.00",PRC DELEGATED CO-COMMISSIONING,S20 7HZ
Department of Health,NHS Sheffield CCG,5/31/2020,C&M-GMS Global Sum,PRC DELEGATED CO-COMMISSIONING,MEDICAL CENTRE CRYSTAL PEAKS,32473609,"49,336.98",PRC DELEGATED CO-COMMISSIONING,S20 7HZ
Department of Health,NHS Sheffield CCG,5/31/2020,C&M-GMS PCN DES Participation,PRC DELEGATED CO-COMMISSIONING,MEDICAL CENTRE CRYSTAL PEAKS,32473609,973.29,PRC DELEGATED CO-COMMISSIONING,S20 7HZ
Department of Health,NHS Sheffield CCG,5/31/2020,C&M-GMS PCO Other,PRC DELEGATED CO-COMMISSIONING,MEDICAL CENTRE CRYSTAL PEAKS,32473609,863.20,PRC DELEGATED CO-COMMISSIONING,S20 7HZ
Department of Health,NHS Sheffield CCG,5/31/2020,C&M-GMS Prem Notional Rent,PRC DELEGATED CO-COMMISSIONING,MEDICAL CENTRE CRYSTAL PEAKS,32473609,270.00,PRC DELEGATED CO-COMMISSIONING,S20 7HZ
Department of Health,NHS Sheffield CCG,5/31/2020,C&M-GMS Prem Rates,PRC DELEGATED CO-COMMISSIONING,MEDICAL CENTRE CRYSTAL PEAKS,32473609,"1,073.00",PRC DELEGATED CO-COMMISSIONING,S20 7HZ
Department of Health,NHS Sheffield CCG,5/31/2020,C&M-GMS Prof Fees Prescribing,PRC DELEGATED CO-COMMISSIONING,MEDICAL CENTRE CRYSTAL PEAKS,32473609,242.08,PRC DELEGATED CO-COMMISSIONING,S20 7HZ
Department of Health,NHS Sheffield CCG,5/31/2020,C&M-GMS QOF Aspiration,PRC DELEGATED CO-COMMISSIONING,MEDICAL CENTRE CRYSTAL PEAKS,32473609,"6,211.79",PRC DELEGATED CO-COMMISSIONING,S20 7HZ
Department of Health,NHS Sheffield CCG,5/31/2020,Hcare Srv Rec NHS Trust-Contract Baseline,ACUTE COMMISSIONING,MID YORKSHIRE HOSPITALS NHS TRUST,32303339,"26,386.10",ACUTE COMMISSIONING,WF1 4DG
Department of Health,NHS Sheffield CCG,5/31/2020,C&M-GMS Cost of Drugs -Prescribing,LOCAL ENHANCED SERVICES,MILL ROAD SURGERY SHEFFIELD,32473617,"2,267.83",LOCAL ENHANCED SERVICES,S35 9XQ
Department of Health,NHS Sheffield CCG,5/31/2020,C&M-GMS DES Minor Surgery,PRC DELEGATED CO-COMMISSIONING,MILL ROAD SURGERY SHEFFIELD,32473617,"1,425.00",PRC DELEGATED CO-COMMISSIONING,S35 9XQ
Department of Health,NHS Sheffield CCG,5/31/2020,C&M-GMS Global Sum,PRC DELEGATED CO-COMMISSIONING,MILL ROAD SURGERY SHEFFIELD,32473617,"42,215.80",PRC DELEGATED CO-COMMISSIONING,S35 9XQ
Department of Health,NHS Sheffield CCG,5/31/2020,C&M-GMS PCN DES Participation,PRC DELEGATED CO-COMMISSIONING,MILL ROAD SURGERY SHEFFIELD,32473617,834.04,PRC DELEGATED CO-COMMISSIONING,S35 9XQ
Department of Health,NHS Sheffield CCG,5/31/2020,C&M-GMS PCO Other,PRC DELEGATED CO-COMMISSIONING,MILL ROAD SURGERY SHEFFIELD,32473617,704.00,PRC DELEGATED CO-COMMISSIONING,S35 9XQ
Department of Health,NHS Sheffield CCG,5/31/2020,C&M-GMS Prem Notional Rent,PRC DELEGATED CO-COMMISSIONING,MILL ROAD SURGERY SHEFFIELD,32473617,"4,593.33",PRC DELEGATED CO-COMMISSIONING,S35 9XQ
Department of Health,NHS Sheffield CCG,5/31/2020,C&M-GMS Prem Rates,PRC DELEGATED CO-COMMISSIONING,MILL ROAD SURGERY SHEFFIELD,32473617,"1,073.00",PRC DELEGATED CO-COMMISSIONING,S35 9XQ
Department of Health,NHS Sheffield CCG,5/31/2020,C&M-GMS Prof Fees Prescribing,PRC DELEGATED CO-COMMISSIONING,MILL ROAD SURGERY SHEFFIELD,32473617,136.56,PRC DELEGATED CO-COMMISSIONING,S35 9XQ
Department of Health,NHS Sheffield CCG,5/31/2020,C&M-GMS QOF Aspiration,PRC DELEGATED CO-COMMISSIONING,MILL ROAD SURGERY SHEFFIELD,32473617,"5,088.50",PRC DELEGATED CO-COMMISSIONING,S35 9XQ
Department of Health,NHS Sheffield CCG,5/31/2020,Clinical&Medical-Independent Sector,Mental Health Services - S117 Mental Health,MOORVILLE RESIDENTIAL,32237111,"25,501.53",Mental Health Services - S117 Mental Health,S10 5FA
Department of Health,NHS Sheffield CCG,5/31/2020,Cont Care-Learning Disab(<65),CHC ADULT FULLY FUNDED,MOORVILLE RESIDENTIAL,32237111,"9,149.03",CHC ADULT FULLY FUNDED,S10 5FA
Department of Health,NHS Sheffield CCG,5/31/2020,Cont Care-Learning Disab(<65),CHC ADULT JOINT FUNDED,MOORVILLE RESIDENTIAL,32237111,"4,024.73",CHC ADULT JOINT FUNDED,S10 5FA
Department of Health,NHS Sheffield CCG,5/31/2020,Cont Care-Mental Health (<65),CHC ADULT JOINT FUNDED,MOORVILLE RESIDENTIAL,32237111,"3,744.49",CHC ADULT JOINT FUNDED,S10 5FA
Department of Health,NHS Sheffield CCG,5/31/2020,Clinical&Medical-Independent Sector,Mental Health Services - S117 Mental Health,MOORVILLE RESIDENTIAL,32237138,"24,678.90",Mental Health Services - S117 Mental Health,S10 5FA
Department of Health,NHS Sheffield CCG,5/31/2020,Cont Care-Learning Disab(<65),CHC ADULT FULLY FUNDED,MOORVILLE RESIDENTIAL,32237138,"8,853.90",CHC ADULT FULLY FUNDED,S10 5FA
Department of Health,NHS Sheffield CCG,5/31/2020,Cont Care-Learning Disab(<65),CHC ADULT JOINT FUNDED,MOORVILLE RESIDENTIAL,32237138,"3,894.90",CHC ADULT JOINT FUNDED,S10 5FA
Department of Health,NHS Sheffield CCG,5/31/2020,Cont Care-Mental Health (<65),CHC ADULT JOINT FUNDED,MOORVILLE RESIDENTIAL,32237138,"3,623.70",CHC ADULT JOINT FUNDED,S10 5FA
Department of Health,NHS Sheffield CCG,5/31/2020,C&M-PMS Contract Value,PRC DELEGATED CO-COMMISSIONING,MOSBOROUGH HEALTH CENTRE,32288957,"50,149.58",PRC DELEGATED CO-COMMISSIONING,S20 5BQ
Department of Health,NHS Sheffield CCG,5/31/2020,C&M-PMS PCN DES Participation,PRC DELEGATED CO-COMMISSIONING,MOSBOROUGH HEALTH CENTRE,32288957,955.17,PRC DELEGATED CO-COMMISSIONING,S20 5BQ
Department of Health,NHS Sheffield CCG,5/31/2020,C&M-PMS Prem Notional Rent,PRC DELEGATED CO-COMMISSIONING,MOSBOROUGH HEALTH CENTRE,32288957,"4,091.67",PRC DELEGATED CO-COMMISSIONING,S20 5BQ
Department of Health,NHS Sheffield CCG,5/31/2020,C&M-PMS Prem Water Rates,PRC DELEGATED CO-COMMISSIONING,MOSBOROUGH HEALTH CENTRE,32288957,64.37,PRC DELEGATED CO-COMMISSIONING,S20 5BQ
Department of Health,NHS Sheffield CCG,5/31/2020,C&M-PMS QOF Aspiration,PRC DELEGATED CO-COMMISSIONING,MOSBOROUGH HEALTH CENTRE,32288957,"5,736.56",PRC DELEGATED CO-COMMISSIONING,S20 5BQ
Department of Health,NHS Sheffield CCG,5/31/2020,C&M-PMS Contract Value,PRC DELEGATED CO-COMMISSIONING,NETHERGREEN SURGERY,32288959,"63,326.25",PRC DELEGATED CO-COMMISSIONING,S11 7EJ
Department of Health,NHS Sheffield CCG,5/31/2020,C&M-PMS GP Statutory Levy,PRC DELEGATED CO-COMMISSIONING,NETHERGREEN SURGERY,32288959,0.32,PRC DELEGATED CO-COMMISSIONING,S11 7EJ
Department of Health,NHS Sheffield CCG,5/31/2020,C&M-PMS PCN DES Participation,PRC DELEGATED CO-COMMISSIONING,NETHERGREEN SURGERY,32288959,"1,201.24",PRC DELEGATED CO-COMMISSIONING,S11 7EJ
Department of Health,NHS Sheffield CCG,5/31/2020,C&M-PMS PCO Other,PRC DELEGATED CO-COMMISSIONING,NETHERGREEN SURGERY,32288959,"5,790.00",PRC DELEGATED CO-COMMISSIONING,S11 7EJ
Department of Health,NHS Sheffield CCG,5/31/2020,C&M-PMS Prem Cost Rent,PRC DELEGATED CO-COMMISSIONING,NETHERGREEN SURGERY,32288959,"5,057.33",PRC DELEGATED CO-COMMISSIONING,S11 7EJ
Department of Health,NHS Sheffield CCG,5/31/2020,C&M-PMS Prem Rates,PRC DELEGATED CO-COMMISSIONING,NETHERGREEN SURGERY,32288959,"2,569.25",PRC DELEGATED CO-COMMISSIONING,S11 7EJ
Department of Health,NHS Sheffield CCG,5/31/2020,C&M-PMS QOF Aspiration,PRC DELEGATED CO-COMMISSIONING,NETHERGREEN SURGERY,32288959,"6,406.79",PRC DELEGATED CO-COMMISSIONING,S11 7EJ
Department of Health,NHS Sheffield CCG,5/31/2020,Cont Care-Physical Disab (<65),CHC ADULT FULLY FUNDED,NEVILLE HEALTH CARE LTD,32426299,"25,448.25",CHC SCHEDULE MAY 2020 - Neville Court Care Home,S70 3HF
Department of Health,NHS Sheffield CCG,5/31/2020,Rent,ESTATES AND FACILITIES,NHS PROPERTY SERVICES LTD,32486819,"120,583.84",https://nww.einvoice-prod.sbs.nhs.uk:8179/invoicepdf/c2e175bd-23ca-5def-910f-8aa3c9dccb4f,EC2V 7NG
Department of Health,NHS Sheffield CCG,5/31/2020,Service Charge,ESTATES AND FACILITIES,NHS PROPERTY SERVICES LTD,32486819,"47,420.33",ESTATES AND FACILITIES,EC2V 7NG
Department of Health,NHS Sheffield CCG,5/31/2020,C&M-GMS Cost of Drugs -Prescribing,LOCAL ENHANCED SERVICES,NORFOLK PARK HEALTH CENTRE,32473622,"1,069.10",LOCAL ENHANCED SERVICES,S2 3TA
Department of Health,NHS Sheffield CCG,5/31/2020,C&M-GMS DES Minor Surgery,PRC DELEGATED CO-COMMISSIONING,NORFOLK PARK HEALTH CENTRE,32473622,950.00,PRC DELEGATED CO-COMMISSIONING,S2 3TA
Department of Health,NHS Sheffield CCG,5/31/2020,C&M-GMS Global Sum,PRC DELEGATED CO-COMMISSIONING,NORFOLK PARK HEALTH CENTRE,32473622,"41,968.89",PRC DELEGATED CO-COMMISSIONING,S2 3TA
Department of Health,NHS Sheffield CCG,5/31/2020,C&M-GMS PCN DES Participation,PRC DELEGATED CO-COMMISSIONING,NORFOLK PARK HEALTH CENTRE,32473622,800.91,PRC DELEGATED CO-COMMISSIONING,S2 3TA
Department of Health,NHS Sheffield CCG,5/31/2020,C&M-GMS Prem Healthcentre Rent,PRC DELEGATED CO-COMMISSIONING,NORFOLK PARK HEALTH CENTRE,32473622,"24,820.01",PRC DELEGATED CO-COMMISSIONING,S2 3TA
Department of Health,NHS Sheffield CCG,5/31/2020,C&M-GMS Prof Fees Prescribing,PRC DELEGATED CO-COMMISSIONING,NORFOLK PARK HEALTH CENTRE,32473622,107.60,PRC DELEGATED CO-COMMISSIONING,S2 3TA
Department of Health,NHS Sheffield CCG,5/31/2020,C&M-GMS QOF Aspiration,PRC DELEGATED CO-COMMISSIONING,NORFOLK PARK HEALTH CENTRE,32473622,"3,941.29",PRC DELEGATED CO-COMMISSIONING,S2 3TA
Department of Health,NHS Sheffield CCG,5/31/2020,C&M-GMS Cost of Drugs -Prescribing,LOCAL ENHANCED SERVICES,NORWOOD MEDICAL CENTRE SHEFFIELD,32473625,561.27,LOCAL ENHANCED SERVICES,S5 7HD
Department of Health,NHS Sheffield CCG,5/31/2020,C&M-GMS DES Minor Surgery,PRC DELEGATED CO-COMMISSIONING,NORWOOD MEDICAL CENTRE SHEFFIELD,32473625,"1,800.00",PRC DELEGATED CO-COMMISSIONING,S5 7HD
Department of Health,NHS Sheffield CCG,5/31/2020,C&M-GMS Global Sum,PRC DELEGATED CO-COMMISSIONING,NORWOOD MEDICAL CENTRE SHEFFIELD,32473625,"68,252.13",PRC DELEGATED CO-COMMISSIONING,S5 7HD
Department of Health,NHS Sheffield CCG,5/31/2020,C&M-GMS PCN DES Participation,PRC DELEGATED CO-COMMISSIONING,NORWOOD MEDICAL CENTRE SHEFFIELD,32473625,"1,343.92",PRC DELEGATED CO-COMMISSIONING,S5 7HD
Department of Health,NHS Sheffield CCG,5/31/2020,C&M-GMS PCO Other,PRC DELEGATED CO-COMMISSIONING,NORWOOD MEDICAL CENTRE SHEFFIELD,32473625,"1,027.60",PRC DELEGATED CO-COMMISSIONING,S5 7HD
Department of Health,NHS Sheffield CCG,5/31/2020,C&M-GMS Prem Notional Rent,PRC DELEGATED CO-COMMISSIONING,NORWOOD MEDICAL CENTRE SHEFFIELD,32473625,"5,187.50",PRC DELEGATED CO-COMMISSIONING,S5 7HD
Department of Health,NHS Sheffield CCG,5/31/2020,C&M-GMS Prem Water Rates,PRC DELEGATED CO-COMMISSIONING,NORWOOD MEDICAL CENTRE SHEFFIELD,32473625,181.46,PRC DELEGATED CO-COMMISSIONING,S5 7HD
Department of Health,NHS Sheffield CCG,5/31/2020,C&M-GMS Prof Fees Prescribing,PRC DELEGATED CO-COMMISSIONING,NORWOOD MEDICAL CENTRE SHEFFIELD,32473625,134.49,PRC DELEGATED CO-COMMISSIONING,S5 7HD
Department of Health,NHS Sheffield CCG,5/31/2020,C&M-GMS QOF Aspiration,PRC DELEGATED CO-COMMISSIONING,NORWOOD MEDICAL CENTRE SHEFFIELD,32473625,"8,171.17",PRC DELEGATED CO-COMMISSIONING,S5 7HD
Department of Health,NHS Sheffield CCG,5/31/2020,Clinical&Medical-Independent Sector,ACUTE COMMISSIONING,ONEHEALTH GROUP,32219369,"74,519.00",https://nww.einvoice-prod.sbs.nhs.uk:8179/invoicepdf/1bd523c1-edc4-545e-b8c0-367c14782903,S11 8UX
Department of Health,NHS Sheffield CCG,5/31/2020,C&M-GMS Cost of Drugs -Dispensing,LOCAL ENHANCED SERVICES,OUGHTIBRIDGE SURGERY,32473628,"-17,412.48",LOCAL ENHANCED SERVICES,S35 0FW
Department of Health,NHS Sheffield CCG,5/31/2020,C&M-GMS GP Statutory Levy,PRC DELEGATED CO-COMMISSIONING,OUGHTIBRIDGE SURGERY,32473628,-201.95,PRC DELEGATED CO-COMMISSIONING,S35 0FW
Department of Health,NHS Sheffield CCG,5/31/2020,C&M-GMS PrscChrgsCll&RmttdbyGPCntra,PRC DELEGATED CO-COMMISSIONING,OUGHTIBRIDGE SURGERY,32473628,-738.00,PRC DELEGATED CO-COMMISSIONING,S35 0FW
Department of Health,NHS Sheffield CCG,5/31/2020,C&M-GMS Cost of Drugs -Dispensing,LOCAL ENHANCED SERVICES,OUGHTIBRIDGE SURGERY,32473629,"33,341.11",LOCAL ENHANCED SERVICES,S35 0FW
Department of Health,NHS Sheffield CCG,5/31/2020,C&M-GMS DES Minor Surgery,PRC DELEGATED CO-COMMISSIONING,OUGHTIBRIDGE SURGERY,32473629,655.00,PRC DELEGATED CO-COMMISSIONING,S35 0FW
Department of Health,NHS Sheffield CCG,5/31/2020,C&M-GMS Dispensing Quality Sch,PRC DELEGATED CO-COMMISSIONING,OUGHTIBRIDGE SURGERY,32473629,"2,897.34",PRC DELEGATED CO-COMMISSIONING,S35 0FW
Department of Health,NHS Sheffield CCG,5/31/2020,C&M-GMS Global Sum,PRC DELEGATED CO-COMMISSIONING,OUGHTIBRIDGE SURGERY,32473629,"44,872.93",PRC DELEGATED CO-COMMISSIONING,S35 0FW
Department of Health,NHS Sheffield CCG,5/31/2020,C&M-GMS PCN DES Participation,PRC DELEGATED CO-COMMISSIONING,OUGHTIBRIDGE SURGERY,32473629,892.20,PRC DELEGATED CO-COMMISSIONING,S35 0FW
Department of Health,NHS Sheffield CCG,5/31/2020,C&M-GMS PCO Other,PRC DELEGATED CO-COMMISSIONING,OUGHTIBRIDGE SURGERY,32473629,"3,824.00",PRC DELEGATED CO-COMMISSIONING,S35 0FW
Department of Health,NHS Sheffield CCG,5/31/2020,C&M-GMS Prem Notional Rent,PRC DELEGATED CO-COMMISSIONING,OUGHTIBRIDGE SURGERY,32473629,"3,957.33",PRC DELEGATED CO-COMMISSIONING,S35 0FW
Department of Health,NHS Sheffield CCG,5/31/2020,C&M-GMS Prem Rates,PRC DELEGATED CO-COMMISSIONING,OUGHTIBRIDGE SURGERY,32473629,"1,073.00",PRC DELEGATED CO-COMMISSIONING,S35 0FW
Department of Health,NHS Sheffield CCG,5/31/2020,C&M-GMS Prof Fees Dispensing,PRC DELEGATED CO-COMMISSIONING,OUGHTIBRIDGE SURGERY,32473629,"4,630.05",PRC DELEGATED CO-COMMISSIONING,S35 0FW
Department of Health,NHS Sheffield CCG,5/31/2020,C&M-GMS PrscrptnChrgsColl&RmttdbyGP,LOCAL ENHANCED SERVICES,OUGHTIBRIDGE SURGERY,32473629,738.00,LOCAL ENHANCED SERVICES,S35 0FW
Department of Health,NHS Sheffield CCG,5/31/2020,C&M-GMS QOF Aspiration,PRC DELEGATED CO-COMMISSIONING,OUGHTIBRIDGE SURGERY,32473629,"4,261.60",PRC DELEGATED CO-COMMISSIONING,S35 0FW
Department of Health,NHS Sheffield CCG,5/31/2020,C&M-PMS Contract Value,PRC DELEGATED CO-COMMISSIONING,OWLTHORPE MEDICAL CENTRE,32288961,"32,945.58",PRC DELEGATED CO-COMMISSIONING,S20 6PD
Department of Health,NHS Sheffield CCG,5/31/2020,C&M-PMS GP Statutory Levy,PRC DELEGATED CO-COMMISSIONING,OWLTHORPE MEDICAL CENTRE,32288961,0.74,PRC DELEGATED CO-COMMISSIONING,S20 6PD
Department of Health,NHS Sheffield CCG,5/31/2020,C&M-PMS PCN DES Participation,PRC DELEGATED CO-COMMISSIONING,OWLTHORPE MEDICAL CENTRE,32288961,633.33,PRC DELEGATED CO-COMMISSIONING,S20 6PD
Department of Health,NHS Sheffield CCG,5/31/2020,C&M-PMS Prem Actual Rent,PRC DELEGATED CO-COMMISSIONING,OWLTHORPE MEDICAL CENTRE,32288961,"7,539.58",PRC DELEGATED CO-COMMISSIONING,S20 6PD
Department of Health,NHS Sheffield CCG,5/31/2020,C&M-PMS QOF Aspiration,PRC DELEGATED CO-COMMISSIONING,OWLTHORPE MEDICAL CENTRE,32288961,"3,873.48",PRC DELEGATED CO-COMMISSIONING,S20 6PD
Department of Health,NHS Sheffield CCG,5/31/2020,C&M-PMS Contract Value,PRC DELEGATED CO-COMMISSIONING,PAGE HALL MEDICAL CENTRE,32288963,"57,696.83",PRC DELEGATED CO-COMMISSIONING,S4 8GB
Department of Health,NHS Sheffield CCG,5/31/2020,C&M-PMS PCN DES Participation,PRC DELEGATED CO-COMMISSIONING,PAGE HALL MEDICAL CENTRE,32288963,"1,096.18",PRC DELEGATED CO-COMMISSIONING,S4 8GB
Department of Health,NHS Sheffield CCG,5/31/2020,C&M-PMS PCO Other,PRC DELEGATED CO-COMMISSIONING,PAGE HALL MEDICAL CENTRE,32288963,"1,005.80",PRC DELEGATED CO-COMMISSIONING,S4 8GB
Department of Health,NHS Sheffield CCG,5/31/2020,C&M-PMS Prem Notional Rent,PRC DELEGATED CO-COMMISSIONING,PAGE HALL MEDICAL CENTRE,32288963,"4,833.33",PRC DELEGATED CO-COMMISSIONING,S4 8GB
Department of Health,NHS Sheffield CCG,5/31/2020,C&M-PMS Prem Rates,PRC DELEGATED CO-COMMISSIONING,PAGE HALL MEDICAL CENTRE,32288963,"1,285.00",PRC DELEGATED CO-COMMISSIONING,S4 8GB
Department of Health,NHS Sheffield CCG,5/31/2020,C&M-PMS Prem Water Rates,PRC DELEGATED CO-COMMISSIONING,PAGE HALL MEDICAL CENTRE,32288963,150.06,PRC DELEGATED CO-COMMISSIONING,S4 8GB
Department of Health,NHS Sheffield CCG,5/31/2020,C&M-PMS QOF Aspiration,PRC DELEGATED CO-COMMISSIONING,PAGE HALL MEDICAL CENTRE,32288963,"4,558.05",PRC DELEGATED CO-COMMISSIONING,S4 8GB
Department of Health,NHS Sheffield CCG,5/31/2020,C&M-PMS GP Statutory Levy,PRC DELEGATED CO-COMMISSIONING,PORTER BROOK MEDICAL CENTRE,32288964,"-1,031.14",PRC DELEGATED CO-COMMISSIONING,S11 8HN
Department of Health,NHS Sheffield CCG,5/31/2020,C&M-PMS Out of Hours Opt Outs,PRC DELEGATED CO-COMMISSIONING,PORTER BROOK MEDICAL CENTRE,32288964,"-7,825.00",PRC DELEGATED CO-COMMISSIONING,S11 8HN
Department of Health,NHS Sheffield CCG,5/31/2020,C&M-PMS Voluntary Levy,PRC DELEGATED CO-COMMISSIONING,PORTER BROOK MEDICAL CENTRE,32288964,-147.31,PRC DELEGATED CO-COMMISSIONING,S11 8HN
Department of Health,NHS Sheffield CCG,5/31/2020,C&M-PMS Contract Value,PRC DELEGATED CO-COMMISSIONING,PORTER BROOK MEDICAL CENTRE,32288965,"167,806.58",PRC DELEGATED CO-COMMISSIONING,S11 8HN
Department of Health,NHS Sheffield CCG,5/31/2020,C&M-PMS GP Statutory Levy,PRC DELEGATED CO-COMMISSIONING,PORTER BROOK MEDICAL CENTRE,32288965,9.98,PRC DELEGATED CO-COMMISSIONING,S11 8HN
Department of Health,NHS Sheffield CCG,5/31/2020,C&M-PMS PCN DES Participation,PRC DELEGATED CO-COMMISSIONING,PORTER BROOK MEDICAL CENTRE,32288965,"3,182.41",PRC DELEGATED CO-COMMISSIONING,S11 8HN
Department of Health,NHS Sheffield CCG,5/31/2020,C&M-PMS Prem Actual Rent,PRC DELEGATED CO-COMMISSIONING,PORTER BROOK MEDICAL CENTRE,32288965,"1,666.67",PRC DELEGATED CO-COMMISSIONING,S11 8HN
Department of Health,NHS Sheffield CCG,5/31/2020,C&M-PMS Prem Notional Rent,PRC DELEGATED CO-COMMISSIONING,PORTER BROOK MEDICAL CENTRE,32288965,"9,666.67",PRC DELEGATED CO-COMMISSIONING,S11 8HN
Department of Health,NHS Sheffield CCG,5/31/2020,C&M-PMS Prem Rates,PRC DELEGATED CO-COMMISSIONING,PORTER BROOK MEDICAL CENTRE,32288965,"2,658.00",PRC DELEGATED CO-COMMISSIONING,S11 8HN
Department of Health,NHS Sheffield CCG,5/31/2020,C&M-PMS QOF Aspiration,PRC DELEGATED CO-COMMISSIONING,PORTER BROOK MEDICAL CENTRE,32288965,"8,838.31",PRC DELEGATED CO-COMMISSIONING,S11 8HN
Department of Health,NHS Sheffield CCG,5/31/2020,Clinical&Medical-Commercial Sector,PATIENT TRANSPORT,PREMIER CARE DIRECT LTD,32297448,"112,480.55",https://nww.einvoice-prod.sbs.nhs.uk:8179/invoicepdf/27125922-e32f-5ab3-8eb3-8b72b1e256d7,DN4 5NU
Department of Health,NHS Sheffield CCG,5/31/2020,C&M-GMS LES Basket of Procedures,LOCAL ENHANCED SERVICES,PRIMARY CARE SHEFFIELD LTD,32237156,"53,558.33",LOCAL ENHANCED SERVICES,S9 4EU
Department of Health,NHS Sheffield CCG,5/31/2020,C&M-APMS DES Extended Hours Access,GP FORWARD VIEW,PRIMARY CARE SHEFFIELD LTD,32237160,"302,608.33",GP FORWARD VIEW,S9 4EU
Department of Health,NHS Sheffield CCG,5/31/2020,Cont Care-Physical Disab (<65),CHC ADULT FULLY FUNDED,PRIORY GROUP LTD,32426321,"29,978.04",CHC SCHEDULE MAY 2020 - Richmond Heights Care Home (The Priory Group),DL2 1TS
Department of Health,NHS Sheffield CCG,5/31/2020,C&M-PMS Contract Value,PRC DELEGATED CO-COMMISSIONING,RICHMOND MEDICAL CENTRE,32288967,"66,943.42",PRC DELEGATED CO-COMMISSIONING,S13 8NA
Department of Health,NHS Sheffield CCG,5/31/2020,C&M-PMS PCN DES Participation,PRC DELEGATED CO-COMMISSIONING,RICHMOND MEDICAL CENTRE,32288967,"1,278.48",PRC DELEGATED CO-COMMISSIONING,S13 8NA
Department of Health,NHS Sheffield CCG,5/31/2020,C&M-PMS Prem Notional Rent,PRC DELEGATED CO-COMMISSIONING,RICHMOND MEDICAL CENTRE,32288967,"4,731.00",PRC DELEGATED CO-COMMISSIONING,S13 8NA
Department of Health,NHS Sheffield CCG,5/31/2020,C&M-PMS Prem Rates,PRC DELEGATED CO-COMMISSIONING,RICHMOND MEDICAL CENTRE,32288967,"3,022.75",PRC DELEGATED CO-COMMISSIONING,S13 8NA
Department of Health,NHS Sheffield CCG,5/31/2020,C&M-PMS QOF Aspiration,PRC DELEGATED CO-COMMISSIONING,RICHMOND MEDICAL CENTRE,32288967,"8,208.20",PRC DELEGATED CO-COMMISSIONING,S13 8NA
Department of Health,NHS Sheffield CCG,5/31/2020,Cont Care-Funded Nursing Care Allow,FUNDED NURSING CARE,ROSEBERRY CARE CENTRES,32265087,"30,872.00",FNC SCHEDULE MAY 2020,S5 6AB
Department of Health,NHS Sheffield CCG,5/31/2020,Cont Care-Physical Disab (<65),CHC ADULT FULLY FUNDED,ROSEBERRY CARE CENTRES,32426406,"43,769.54",CHC SCHEDULE MAY 2020 - Chapel Lodge Nursing Home (Roseberry),S35 2XF
Department of Health,NHS Sheffield CCG,5/31/2020,Cont Care-Physical Disab (<65),CHC ADULT FULLY FUNDED,ROSEBERRY CARE CENTRES,32426410,"34,071.21",CHC SCHEDULE MAY 2020 - Haythorne Place Nursing Home (Roseberry),S35 2XF
Department of Health,NHS Sheffield CCG,5/31/2020,Cont Care-Physical Disab (<65),CHC ADULT FULLY FUNDED,ROSEBERRY CARE CENTRES,32426482,"30,410.55",CHC SCHEDULE MAY 2020 - Norbury Court Care Centre (Roseberry),S35 2XF
Department of Health,NHS Sheffield CCG,5/31/2020,Hcare Srv Rec Fdtn Trust-Contract Baseline,MENTAL HEALTH CONTRACTS,ROTHERHAM DONCASTER AND SOUTH HUMBER NHS FOUNDATION TRUST,32303335,"37,808.66",MENTAL HEALTH CONTRACTS,DN4 8QN
Department of Health,NHS Sheffield CCG,5/31/2020,Hcare Srv Rec Fdtn Trust-Contract Baseline,ACUTE COMMISSIONING,ROTHERHAM NHS FOUNDATION TRUST,32199077,"-40,357.00",ACUTE COMMISSIONING,S60 2UD
Department of Health,NHS Sheffield CCG,5/31/2020,Clinical&Medical-Serv Recd-F Trsts,CLINICAL LEADS,ROTHERHAM NHS FOUNDATION TRUST,32218996,"140,000.00",CLINICAL LEADS,S60 2UD
Department of Health,NHS Sheffield CCG,5/31/2020,Clinical&Medical-Serv Recd-F Trsts,CLINICAL LEADS,ROTHERHAM NHS FOUNDATION TRUST,32219196,"-95,000.00",CLINICAL LEADS,S60 2UD
Department of Health,NHS Sheffield CCG,5/31/2020,Clinical&Medical-Serv Recd-F Trsts,BEREAVEMENT SERVICE,ROTHERHAM NHS FOUNDATION TRUST,32259328,"28,673.00",BEREAVEMENT SERVICE,S60 2UD
Department of Health,NHS Sheffield CCG,5/31/2020,Hcare Srv Rec Fdtn Trust-Contract Baseline,ACUTE COMMISSIONING,ROTHERHAM NHS FOUNDATION TRUST,32303345,"618,988.29",ACUTE COMMISSIONING,S60 2UD
Department of Health,NHS Sheffield CCG,5/31/2020,C&M-PMS Contract Value,PRC DELEGATED CO-COMMISSIONING,RUSTLINGS ROAD MEDICAL CENTRE,32314232,"28,206.33",PRC DELEGATED CO-COMMISSIONING,S11 7AB
Department of Health,NHS Sheffield CCG,5/31/2020,C&M-PMS PCN DES Participation,PRC DELEGATED CO-COMMISSIONING,RUSTLINGS ROAD MEDICAL CENTRE,32314232,536.04,PRC DELEGATED CO-COMMISSIONING,S11 7AB
Department of Health,NHS Sheffield CCG,5/31/2020,C&M-PMS PCO Other,PRC DELEGATED CO-COMMISSIONING,RUSTLINGS ROAD MEDICAL CENTRE,32314232,632.80,PRC DELEGATED CO-COMMISSIONING,S11 7AB
Department of Health,NHS Sheffield CCG,5/31/2020,C&M-PMS Prem Notional Rent,PRC DELEGATED CO-COMMISSIONING,RUSTLINGS ROAD MEDICAL CENTRE,32314232,"1,312.50",PRC DELEGATED CO-COMMISSIONING,S11 7AB
Department of Health,NHS Sheffield CCG,5/31/2020,C&M-PMS QOF Aspiration,PRC DELEGATED CO-COMMISSIONING,RUSTLINGS ROAD MEDICAL CENTRE,32314232,"2,653.37",PRC DELEGATED CO-COMMISSIONING,S11 7AB
Department of Health,NHS Sheffield CCG,5/31/2020,Cont Care-Physical Disab (<65),CHC ADULT FULLY FUNDED,SCARSDALE GRANGE NURSING HOME,32426334,"25,469.07",CHC SCHEDULE MAY 2020 - Scarsdale Grange Nursing Home,S8 9EQ
Department of Health,NHS Sheffield CCG,5/31/2020,Cont Care-Physical Disab (<65),CHC ADULT FULLY FUNDED,SEVEN HILLS NURSING HOME,32426343,"50,508.84",CHC SCHEDULE MAY 2020 - Seven Hills Nursing Home,S11 9AA
Department of Health,NHS Sheffield CCG,5/31/2020,C&M-GMS Cost of Drugs -Prescribing,LOCAL ENHANCED SERVICES,SHARROW LANE MEDICAL CENTRE,32473633,421.43,LOCAL ENHANCED SERVICES,S11 8AN
Department of Health,NHS Sheffield CCG,5/31/2020,C&M-GMS DES Minor Surgery,PRC DELEGATED CO-COMMISSIONING,SHARROW LANE MEDICAL CENTRE,32473633,360.00,PRC DELEGATED CO-COMMISSIONING,S11 8AN
Department of Health,NHS Sheffield CCG,5/31/2020,C&M-GMS Global Sum,PRC DELEGATED CO-COMMISSIONING,SHARROW LANE MEDICAL CENTRE,32473633,"24,622.08",PRC DELEGATED CO-COMMISSIONING,S11 8AN
Department of Health,NHS Sheffield CCG,5/31/2020,C&M-GMS PCN DES Participation,PRC DELEGATED CO-COMMISSIONING,SHARROW LANE MEDICAL CENTRE,32473633,487.93,PRC DELEGATED CO-COMMISSIONING,S11 8AN
Department of Health,NHS Sheffield CCG,5/31/2020,C&M-GMS PCO Other,PRC DELEGATED CO-COMMISSIONING,SHARROW LANE MEDICAL CENTRE,32473633,274.00,PRC DELEGATED CO-COMMISSIONING,S11 8AN
Department of Health,NHS Sheffield CCG,5/31/2020,C&M-GMS Prem Notional Rent,PRC DELEGATED CO-COMMISSIONING,SHARROW LANE MEDICAL CENTRE,32473633,"2,741.67",PRC DELEGATED CO-COMMISSIONING,S11 8AN
Department of Health,NHS Sheffield CCG,5/31/2020,C&M-GMS Prof Fees Prescribing,PRC DELEGATED CO-COMMISSIONING,SHARROW LANE MEDICAL CENTRE,32473633,70.35,PRC DELEGATED CO-COMMISSIONING,S11 8AN
Department of Health,NHS Sheffield CCG,5/31/2020,C&M-GMS QOF Aspiration,PRC DELEGATED CO-COMMISSIONING,SHARROW LANE MEDICAL CENTRE,32473633,"2,666.85",PRC DELEGATED CO-COMMISSIONING,S11 8AN
Department of Health,NHS Sheffield CCG,5/31/2020,Hcare Srv Rec Fdtn Trust-Contract Baseline,ACUTE CHILDRENS SERVICES,SHEFFIELD CHILDRENS NHS FOUNDATION TRUST,32199082,"-3,430,788.00",https://nww.einvoice-prod.sbs.nhs.uk:8179/invoicepdf/15ab5a8e-67cb-5ef3-a725-bd15c4802ad0,S10 2TH
Department of Health,NHS Sheffield CCG,5/31/2020,Hcare Srv Rec Fdtn Trust-Contract Baseline,ACUTE CHILDRENS SERVICES,SHEFFIELD CHILDRENS NHS FOUNDATION TRUST,32303332,"3,460,348.98",ACUTE CHILDRENS SERVICES,S10 2TH
Department of Health,NHS Sheffield CCG,5/31/2020,Cont Care- Prior Year Payments,CHC ADULT FULLY FUNDED,SHEFFIELD CITY COUNCIL,32167128,"271,540.54",RMT SCHEDULE APRIL 2020PY,S1 1UJ
Department of Health,NHS Sheffield CCG,5/31/2020,Cont Care-Physical Disab (65+),CHC ADULT FULLY FUNDED,SHEFFIELD CITY COUNCIL,32167131,"869,377.27",RMT SCHEDULE APRIL 2020,S1 1UJ
Department of Health,NHS Sheffield CCG,5/31/2020,Cont Care- Children,CHC CHILDREN,SHEFFIELD CITY COUNCIL,32167133,"86,270.53",CHILDRENS SCHEDULE APRIL 2020,S1 1UJ
Department of Health,NHS Sheffield CCG,5/31/2020,Cont Care- Prior Year Payments,CHC ADULT FULLY FUNDED,SHEFFIELD CITY COUNCIL,32529540,"55,591.98",RMT SCHEDULE MAY 2020PY,S1 1UJ
Department of Health,NHS Sheffield CCG,5/31/2020,Cont Care-Physical Disab (65+),CHC ADULT FULLY FUNDED,SHEFFIELD CITY COUNCIL,32529541,"916,229.93",RMT SCHEDULE MAY 2020,S1 1UJ
Department of Health,NHS Sheffield CCG,5/31/2020,Cont Care- Children,CHC CHILDREN,SHEFFIELD CITY COUNCIL,32529543,"90,019.06",CHILDRENS SCHEDULE MAY 2020,S1 1UJ
Department of Health,NHS Sheffield CCG,5/31/2020,Hcare Srv Rec Fdtn Trust-Contract Baseline,MENTAL HEALTH CONTRACTS,SHEFFIELD HEALTH & SOCIAL CARE NHS FOUNDATION TRUST,32303333,"7,311,989.53",MENTAL HEALTH CONTRACTS,S10 3TH
Department of Health,NHS Sheffield CCG,5/31/2020,Hcare Srv Rec Fdtn Trust-Contract Baseline,ACUTE COMMISSIONING,SHEFFIELD TEACHING HOSPITALS NHS FOUNDATION TRUST,32303334,"37,588,203.57",ACUTE COMMISSIONING,S5 7AU
Department of Health,NHS Sheffield CCG,5/31/2020,Hcare Srv Rec Fdtn Trust-Contract Baseline,ACUTE COMMISSIONING,SHEFFIELD TEACHING HOSPITALS NHS FOUNDATION TRUST,32411049,"1,367,220.00",ACUTE COMMISSIONING,S5 7AU
Department of Health,NHS Sheffield CCG,5/31/2020,Hcare Srv Rec Fdtn Trust-Contract Baseline,ACUTE COMMISSIONING,SHEFFIELD TEACHING HOSPITALS NHS FOUNDATION TRUST,32411050,"30,408,062.00",ACUTE COMMISSIONING,S5 7AU
Department of Health,NHS Sheffield CCG,5/31/2020,Hcare Srv Rec Fdtn Trust-Contract Baseline,ACUTE COMMISSIONING,SHEFFIELD TEACHING HOSPITALS NHS FOUNDATION TRUST,32411051,"3,898,718.00",ACUTE COMMISSIONING,S5 7AU
Department of Health,NHS Sheffield CCG,5/31/2020,Hcare Srv Rec Fdtn Trust-Contract Baseline,ACUTE COMMISSIONING,SHEFFIELD TEACHING HOSPITALS NHS FOUNDATION TRUST,32411052,"843,736.00",ACUTE COMMISSIONING,S5 7AU
Department of Health,NHS Sheffield CCG,5/31/2020,Hcare Srv Rec Fdtn Trust-Contract Baseline,ACUTE COMMISSIONING,SHEFFIELD TEACHING HOSPITALS NHS FOUNDATION TRUST,32411056,"-3,898,718.00",ACUTE COMMISSIONING,S5 7AU
Department of Health,NHS Sheffield CCG,5/31/2020,Hcare Srv Rec Fdtn Trust-Contract Baseline,ACUTE COMMISSIONING,SHEFFIELD TEACHING HOSPITALS NHS FOUNDATION TRUST,32411057,"-30,408,062.00",ACUTE COMMISSIONING,S5 7AU
Department of Health,NHS Sheffield CCG,5/31/2020,Hcare Srv Rec Fdtn Trust-Contract Baseline,ACUTE COMMISSIONING,SHEFFIELD TEACHING HOSPITALS NHS FOUNDATION TRUST,32411058,"-1,367,220.00",ACUTE COMMISSIONING,S5 7AU
Department of Health,NHS Sheffield CCG,5/31/2020,OVERSEAS NON EEA PATIENTS,OVERSEAS NON EEA PATIENTS,SHEFFIELD TEACHING HOSPITALS NHS FOUNDATION TRUST,32488038,"36,913.00",OVERSEAS NON EEA PATIENTS,S5 7AU
Department of Health,NHS Sheffield CCG,5/31/2020,C&M-GMS Cost of Drugs -Prescribing,LOCAL ENHANCED SERVICES,SHIREGREEN MEDICAL CENTRE,32473639,"1,023.94",LOCAL ENHANCED SERVICES,S5 0RG
Department of Health,NHS Sheffield CCG,5/31/2020,C&M-GMS DES Minor Surgery,PRC DELEGATED CO-COMMISSIONING,SHIREGREEN MEDICAL CENTRE,32473639,280.00,PRC DELEGATED CO-COMMISSIONING,S5 0RG
Department of Health,NHS Sheffield CCG,5/31/2020,C&M-GMS Global Sum,PRC DELEGATED CO-COMMISSIONING,SHIREGREEN MEDICAL CENTRE,32473639,"60,103.03",PRC DELEGATED CO-COMMISSIONING,S5 0RG
Department of Health,NHS Sheffield CCG,5/31/2020,C&M-GMS PCN DES Participation,PRC DELEGATED CO-COMMISSIONING,SHIREGREEN MEDICAL CENTRE,32473639,"1,193.58",PRC DELEGATED CO-COMMISSIONING,S5 0RG
Department of Health,NHS Sheffield CCG,5/31/2020,C&M-GMS PCO Other,PRC DELEGATED CO-COMMISSIONING,SHIREGREEN MEDICAL CENTRE,32473639,992.00,PRC DELEGATED CO-COMMISSIONING,S5 0RG
Department of Health,NHS Sheffield CCG,5/31/2020,C&M-GMS Prem Cost Rent,PRC DELEGATED CO-COMMISSIONING,SHIREGREEN MEDICAL CENTRE,32473639,"1,792.33",PRC DELEGATED CO-COMMISSIONING,S5 0RG
Department of Health,NHS Sheffield CCG,5/31/2020,C&M-GMS Prem Notional Rent,PRC DELEGATED CO-COMMISSIONING,SHIREGREEN MEDICAL CENTRE,32473639,"5,375.00",PRC DELEGATED CO-COMMISSIONING,S5 0RG
Department of Health,NHS Sheffield CCG,5/31/2020,C&M-GMS Prof Fees Prescribing,PRC DELEGATED CO-COMMISSIONING,SHIREGREEN MEDICAL CENTRE,32473639,163.45,PRC DELEGATED CO-COMMISSIONING,S5 0RG
Department of Health,NHS Sheffield CCG,5/31/2020,C&M-GMS QOF Aspiration,PRC DELEGATED CO-COMMISSIONING,SHIREGREEN MEDICAL CENTRE,32473639,"6,849.89",PRC DELEGATED CO-COMMISSIONING,S5 0RG
Department of Health,NHS Sheffield CCG,5/31/2020,C&M-PMS Contract Value,PRC DELEGATED CO-COMMISSIONING,SLOAN MEDICAL CENTRE,32288972,"96,050.33",PRC DELEGATED CO-COMMISSIONING,S8 0YH
Department of Health,NHS Sheffield CCG,5/31/2020,C&M-PMS PCN DES Participation,PRC DELEGATED CO-COMMISSIONING,SLOAN MEDICAL CENTRE,32288972,"1,829.77",PRC DELEGATED CO-COMMISSIONING,S8 0YH
Department of Health,NHS Sheffield CCG,5/31/2020,C&M-PMS Prem Actual Rent,PRC DELEGATED CO-COMMISSIONING,SLOAN MEDICAL CENTRE,32288972,"15,970.83",PRC DELEGATED CO-COMMISSIONING,S8 0YH
Department of Health,NHS Sheffield CCG,5/31/2020,C&M-PMS Prem Notional Rent,PRC DELEGATED CO-COMMISSIONING,SLOAN MEDICAL CENTRE,32288972,747.50,PRC DELEGATED CO-COMMISSIONING,S8 0YH
Department of Health,NHS Sheffield CCG,5/31/2020,C&M-PMS Prem Rates,PRC DELEGATED CO-COMMISSIONING,SLOAN MEDICAL CENTRE,32288972,"3,478.00",PRC DELEGATED CO-COMMISSIONING,S8 0YH
Department of Health,NHS Sheffield CCG,5/31/2020,C&M-PMS QOF Aspiration,PRC DELEGATED CO-COMMISSIONING,SLOAN MEDICAL CENTRE,32288972,"10,003.70",PRC DELEGATED CO-COMMISSIONING,S8 0YH
Department of Health,NHS Sheffield CCG,5/31/2020,C&M-PMS Contract Value,PRC DELEGATED CO-COMMISSIONING,SOTHALL MEDICAL CENTRE,32288974,"71,243.33",PRC DELEGATED CO-COMMISSIONING,S20 1HQ
Department of Health,NHS Sheffield CCG,5/31/2020,C&M-PMS PCN DES Participation,PRC DELEGATED CO-COMMISSIONING,SOTHALL MEDICAL CENTRE,32288974,"1,354.16",PRC DELEGATED CO-COMMISSIONING,S20 1HQ
Department of Health,NHS Sheffield CCG,5/31/2020,C&M-PMS Prem Notional Rent,PRC DELEGATED CO-COMMISSIONING,SOTHALL MEDICAL CENTRE,32288974,"5,116.67",PRC DELEGATED CO-COMMISSIONING,S20 1HQ
Department of Health,NHS Sheffield CCG,5/31/2020,C&M-PMS Prem Rates,PRC DELEGATED CO-COMMISSIONING,SOTHALL MEDICAL CENTRE,32288974,"2,866.25",PRC DELEGATED CO-COMMISSIONING,S20 1HQ
Department of Health,NHS Sheffield CCG,5/31/2020,C&M-PMS QOF Aspiration,PRC DELEGATED CO-COMMISSIONING,SOTHALL MEDICAL CENTRE,32288974,"8,630.52",PRC DELEGATED CO-COMMISSIONING,S20 1HQ
Department of Health,NHS Sheffield CCG,5/31/2020,Cont Care-Physical Disab (<65),CHC ADULT FULLY FUNDED,SOUTH YORKSHIRE HOUSING ASSOCIATION LTD,32426246,"101,460.86",CHC SCHEDULE MAY 2020 - Birch Avenue Nursing Home (SYHA),S35 1RQ
Department of Health,NHS Sheffield CCG,5/31/2020,Cont Care- Adult 100% Fully Funded,CHC ADULT FULLY FUNDED,SOUTH YORKSHIRE HOUSING ASSOCIATION LTD,32529544,"46,763.59",Birch Avenue - April 20,S1 4HF
Department of Health,NHS Sheffield CCG,5/31/2020,Cont Care- Adult 100% Fully Funded,CHC ADULT FULLY FUNDED,SOUTH YORKSHIRE HOUSING ASSOCIATION LTD,32529545,"25,500.00",Birch Avenue - Additional Staff April 20,S1 4HF
Department of Health,NHS Sheffield CCG,5/31/2020,Cont Care- Adult 100% Fully Funded,CHC ADULT FULLY FUNDED,SOUTH YORKSHIRE HOUSING ASSOCIATION LTD,32529546,"46,763.59",Birch Avenue - May 20,S1 4HF
Department of Health,NHS Sheffield CCG,5/31/2020,Cont Care- Adult 100% Fully Funded,CHC ADULT FULLY FUNDED,SOUTH YORKSHIRE HOUSING ASSOCIATION LTD,32529547,"25,500.00",Birch Avenue - Additional Staff May 20,S1 4HF
Department of Health,NHS Sheffield CCG,5/31/2020,Clinical&Medical-Independent Sector,MENTAL HEALTH CONTRACTS,SOUTH YORKSHIRE HOUSING ASSOCIATION LTD,32529550,"34,434.83",Lister Avenue -April 20,S1 4HF
Department of Health,NHS Sheffield CCG,5/31/2020,Clinical&Medical-Independent Sector,MENTAL HEALTH CONTRACTS,SOUTH YORKSHIRE HOUSING ASSOCIATION LTD,32529551,"34,434.83",Lister Avenue -May 20,S1 4HF
Department of Health,NHS Sheffield CCG,5/31/2020,C&M-PMS Contract Value,PRC DELEGATED CO-COMMISSIONING,SOUTHEY GREEN MEDICAL CENTRE,32288976,"25,158.17",PRC DELEGATED CO-COMMISSIONING,S5 7QB
Department of Health,NHS Sheffield CCG,5/31/2020,C&M-PMS PCN DES Participation,PRC DELEGATED CO-COMMISSIONING,SOUTHEY GREEN MEDICAL CENTRE,32288976,475.95,PRC DELEGATED CO-COMMISSIONING,S5 7QB
Department of Health,NHS Sheffield CCG,5/31/2020,C&M-PMS Prem Notional Rent,PRC DELEGATED CO-COMMISSIONING,SOUTHEY GREEN MEDICAL CENTRE,32288976,"3,362.50",PRC DELEGATED CO-COMMISSIONING,S5 7QB
Department of Health,NHS Sheffield CCG,5/31/2020,C&M-PMS QOF Aspiration,PRC DELEGATED CO-COMMISSIONING,SOUTHEY GREEN MEDICAL CENTRE,32288976,"2,668.69",PRC DELEGATED CO-COMMISSIONING,S5 7QB
Department of Health,NHS Sheffield CCG,5/31/2020,Clinical&Medical-Voluntary Sector,HOSPICES,ST LUKES HOSPICE,32385012,"2,663,484.00",HOSPICES,S11 9NE
Department of Health,NHS Sheffield CCG,5/31/2020,C&M-GMS Cost of Drugs -Prescribing,LOCAL ENHANCED SERVICES,STANNINGTON MEDICAL CENTRE,32473643,224.45,LOCAL ENHANCED SERVICES,S6 6BX
Department of Health,NHS Sheffield CCG,5/31/2020,C&M-GMS DES Minor Surgery,PRC DELEGATED CO-COMMISSIONING,STANNINGTON MEDICAL CENTRE,32473643,240.00,PRC DELEGATED CO-COMMISSIONING,S6 6BX
Department of Health,NHS Sheffield CCG,5/31/2020,C&M-GMS Global Sum,PRC DELEGATED CO-COMMISSIONING,STANNINGTON MEDICAL CENTRE,32473643,"27,002.78",PRC DELEGATED CO-COMMISSIONING,S6 6BX
Department of Health,NHS Sheffield CCG,5/31/2020,C&M-GMS PCO Other,PRC DELEGATED CO-COMMISSIONING,STANNINGTON MEDICAL CENTRE,32473643,486.80,PRC DELEGATED CO-COMMISSIONING,S6 6BX
Department of Health,NHS Sheffield CCG,5/31/2020,C&M-GMS Prem Notional Rent,PRC DELEGATED CO-COMMISSIONING,STANNINGTON MEDICAL CENTRE,32473643,"2,575.00",PRC DELEGATED CO-COMMISSIONING,S6 6BX
Department of Health,NHS Sheffield CCG,5/31/2020,C&M-GMS Prof Fees Prescribing,PRC DELEGATED CO-COMMISSIONING,STANNINGTON MEDICAL CENTRE,32473643,31.04,PRC DELEGATED CO-COMMISSIONING,S6 6BX
Department of Health,NHS Sheffield CCG,5/31/2020,C&M-GMS QOF Aspiration,PRC DELEGATED CO-COMMISSIONING,STANNINGTON MEDICAL CENTRE,32473643,"2,881.70",PRC DELEGATED CO-COMMISSIONING,S6 6BX
Department of Health,NHS Sheffield CCG,5/31/2020,C&M-GMS Cost of Drugs -Prescribing,LOCAL ENHANCED SERVICES,STONECROFT MEDICAL CENTRE,32473641,484.77,LOCAL ENHANCED SERVICES,S12 2LJ
Department of Health,NHS Sheffield CCG,5/31/2020,C&M-GMS DES Minor Surgery,PRC DELEGATED CO-COMMISSIONING,STONECROFT MEDICAL CENTRE,32473641,"1,840.00",PRC DELEGATED CO-COMMISSIONING,S12 2LJ
Department of Health,NHS Sheffield CCG,5/31/2020,C&M-GMS Global Sum,PRC DELEGATED CO-COMMISSIONING,STONECROFT MEDICAL CENTRE,32473641,"33,839.53",PRC DELEGATED CO-COMMISSIONING,S12 2LJ
Department of Health,NHS Sheffield CCG,5/31/2020,C&M-GMS PCN DES Participation,PRC DELEGATED CO-COMMISSIONING,STONECROFT MEDICAL CENTRE,32473641,668.04,PRC DELEGATED CO-COMMISSIONING,S12 2LJ
Department of Health,NHS Sheffield CCG,5/31/2020,C&M-GMS Prem Notional Rent,PRC DELEGATED CO-COMMISSIONING,STONECROFT MEDICAL CENTRE,32473641,"2,808.33",PRC DELEGATED CO-COMMISSIONING,S12 2LJ
Department of Health,NHS Sheffield CCG,5/31/2020,C&M-GMS Prem Rates,PRC DELEGATED CO-COMMISSIONING,STONECROFT MEDICAL CENTRE,32473641,"1,235.00",PRC DELEGATED CO-COMMISSIONING,S12 2LJ
Department of Health,NHS Sheffield CCG,5/31/2020,C&M-GMS Prof Fees Prescribing,PRC DELEGATED CO-COMMISSIONING,STONECROFT MEDICAL CENTRE,32473641,74.49,PRC DELEGATED CO-COMMISSIONING,S12 2LJ
Department of Health,NHS Sheffield CCG,5/31/2020,C&M-GMS QOF Aspiration,PRC DELEGATED CO-COMMISSIONING,STONECROFT MEDICAL CENTRE,32473641,"4,228.40",PRC DELEGATED CO-COMMISSIONING,S12 2LJ
Department of Health,NHS Sheffield CCG,5/31/2020,Clinical&Medical-Independent Sector,MENTAL HEALTH CONTRACTS,SUSASH GB LTD T/A EAGLE HOUSE,32529548,"30,091.75",Eagle House - April 20,S11 8NP
Department of Health,NHS Sheffield CCG,5/31/2020,Clinical&Medical-Independent Sector,MENTAL HEALTH CONTRACTS,SUSASH GB LTD T/A EAGLE HOUSE,32529549,"30,091.75",Eagle House - May 20,S11 8NP
Department of Health,NHS Sheffield CCG,5/31/2020,C&M-GMS Cost of Drugs -Prescribing,LOCAL ENHANCED SERVICES,TOTLEY RISE MEDICAL CENTRE,32473645,444.13,LOCAL ENHANCED SERVICES,S17 4DQ
Department of Health,NHS Sheffield CCG,5/31/2020,C&M-GMS DES Minor Surgery,PRC DELEGATED CO-COMMISSIONING,TOTLEY RISE MEDICAL CENTRE,32473645,365.00,PRC DELEGATED CO-COMMISSIONING,S17 4DQ
Department of Health,NHS Sheffield CCG,5/31/2020,C&M-GMS Global Sum,PRC DELEGATED CO-COMMISSIONING,TOTLEY RISE MEDICAL CENTRE,32473645,"27,189.02",PRC DELEGATED CO-COMMISSIONING,S17 4DQ
Department of Health,NHS Sheffield CCG,5/31/2020,C&M-GMS PCN DES Participation,PRC DELEGATED CO-COMMISSIONING,TOTLEY RISE MEDICAL CENTRE,32473645,531.20,PRC DELEGATED CO-COMMISSIONING,S17 4DQ
Department of Health,NHS Sheffield CCG,5/31/2020,C&M-GMS Prem Notional Rent,PRC DELEGATED CO-COMMISSIONING,TOTLEY RISE MEDICAL CENTRE,32473645,"1,604.17",PRC DELEGATED CO-COMMISSIONING,S17 4DQ
Department of Health,NHS Sheffield CCG,5/31/2020,C&M-GMS Prof Fees Prescribing,PRC DELEGATED CO-COMMISSIONING,TOTLEY RISE MEDICAL CENTRE,32473645,80.69,PRC DELEGATED CO-COMMISSIONING,S17 4DQ
Department of Health,NHS Sheffield CCG,5/31/2020,C&M-GMS QOF Aspiration,PRC DELEGATED CO-COMMISSIONING,TOTLEY RISE MEDICAL CENTRE,32473645,"2,304.18",PRC DELEGATED CO-COMMISSIONING,S17 4DQ
Department of Health,NHS Sheffield CCG,5/31/2020,C&M-GMS Cost of Drugs -Prescribing,LOCAL ENHANCED SERVICES,TRAMWAYS MEDICAL CENTRE,32473647,"2,005.60",LOCAL ENHANCED SERVICES,S6 4JQ
Department of Health,NHS Sheffield CCG,5/31/2020,C&M-GMS DES Minor Surgery,PRC DELEGATED CO-COMMISSIONING,TRAMWAYS MEDICAL CENTRE,32473647,"9,180.00",PRC DELEGATED CO-COMMISSIONING,S6 4JQ
Department of Health,NHS Sheffield CCG,5/31/2020,C&M-GMS Global Sum,PRC DELEGATED CO-COMMISSIONING,TRAMWAYS MEDICAL CENTRE,32473647,"63,609.35",PRC DELEGATED CO-COMMISSIONING,S6 4JQ
Department of Health,NHS Sheffield CCG,5/31/2020,C&M-GMS PCN DES Participation,PRC DELEGATED CO-COMMISSIONING,TRAMWAYS MEDICAL CENTRE,32473647,"1,257.39",PRC DELEGATED CO-COMMISSIONING,S6 4JQ
Department of Health,NHS Sheffield CCG,5/31/2020,C&M-GMS PCO Other,PRC DELEGATED CO-COMMISSIONING,TRAMWAYS MEDICAL CENTRE,32473647,"1,060.80",PRC DELEGATED CO-COMMISSIONING,S6 4JQ
Department of Health,NHS Sheffield CCG,5/31/2020,C&M-GMS Prem Cost Rent,PRC DELEGATED CO-COMMISSIONING,TRAMWAYS MEDICAL CENTRE,32473647,"4,012.75",PRC DELEGATED CO-COMMISSIONING,S6 4JQ
Department of Health,NHS Sheffield CCG,5/31/2020,C&M-GMS Prem Rates,PRC DELEGATED CO-COMMISSIONING,TRAMWAYS MEDICAL CENTRE,32473647,"1,310.00",PRC DELEGATED CO-COMMISSIONING,S6 4JQ
Department of Health,NHS Sheffield CCG,5/31/2020,C&M-GMS Prof Fees Prescribing,PRC DELEGATED CO-COMMISSIONING,TRAMWAYS MEDICAL CENTRE,32473647,173.80,PRC DELEGATED CO-COMMISSIONING,S6 4JQ
Department of Health,NHS Sheffield CCG,5/31/2020,C&M-GMS QOF Aspiration,PRC DELEGATED CO-COMMISSIONING,TRAMWAYS MEDICAL CENTRE,32473647,"5,645.42",PRC DELEGATED CO-COMMISSIONING,S6 4JQ
Department of Health,NHS Sheffield CCG,5/31/2020,Hcare Srv Rec NHS Trust-Contract Baseline,ACUTE COMMISSIONING,UNITED LINCOLNSHIRE HOSPITALS NHS TRUST,32303347,"27,985.26",ACUTE COMMISSIONING,LN2 5QY
Department of Health,NHS Sheffield CCG,5/31/2020,C&M-PCN DES Support Payment,PRC DELEGATED CO-COMMISSIONING,UNIVERSITY HEALTH SERVICE,32314233,"2,374.11",PRC DELEGATED CO-COMMISSIONING,S3 7QP
Department of Health,NHS Sheffield CCG,5/31/2020,C&M-PMS Contract Value,PRC DELEGATED CO-COMMISSIONING,UNIVERSITY HEALTH SERVICE,32314233,"197,795.00",PRC DELEGATED CO-COMMISSIONING,S3 7QP
Department of Health,NHS Sheffield CCG,5/31/2020,C&M-PMS DES Extended Hours Access,PRC DELEGATED CO-COMMISSIONING,UNIVERSITY HEALTH SERVICE,32314233,"4,929.28",PRC DELEGATED CO-COMMISSIONING,S3 7QP
Department of Health,NHS Sheffield CCG,5/31/2020,C&M-PMS GP Statutory Levy,PRC DELEGATED CO-COMMISSIONING,UNIVERSITY HEALTH SERVICE,32314233,45.89,PRC DELEGATED CO-COMMISSIONING,S3 7QP
Department of Health,NHS Sheffield CCG,5/31/2020,C&M-PMS PCN DES Clinical Director,PRC DELEGATED CO-COMMISSIONING,UNIVERSITY HEALTH SERVICE,32314233,"2,454.44",PRC DELEGATED CO-COMMISSIONING,S3 7QP
Department of Health,NHS Sheffield CCG,5/31/2020,C&M-PMS PCN DES PCN support,LOCAL ENHANCED SERVICES,UNIVERSITY HEALTH SERVICE,32314233,"5,099.25",LOCAL ENHANCED SERVICES,S3 7QP
Department of Health,NHS Sheffield CCG,5/31/2020,C&M-PMS PCN DES Participation,PRC DELEGATED CO-COMMISSIONING,UNIVERSITY HEALTH SERVICE,32314233,"3,871.12",PRC DELEGATED CO-COMMISSIONING,S3 7QP
Department of Health,NHS Sheffield CCG,5/31/2020,C&M-PMS PCO Other,PRC DELEGATED CO-COMMISSIONING,UNIVERSITY HEALTH SERVICE,32314233,"23,778.00",PRC DELEGATED CO-COMMISSIONING,S3 7QP
Department of Health,NHS Sheffield CCG,5/31/2020,C&M-PMS Prem Notional Rent,PRC DELEGATED CO-COMMISSIONING,UNIVERSITY HEALTH SERVICE,32314233,"15,833.33",PRC DELEGATED CO-COMMISSIONING,S3 7QP
Department of Health,NHS Sheffield CCG,5/31/2020,C&M-PMS QOF Aspiration,PRC DELEGATED CO-COMMISSIONING,UNIVERSITY HEALTH SERVICE,32314233,"4,031.41",PRC DELEGATED CO-COMMISSIONING,S3 7QP
Department of Health,NHS Sheffield CCG,5/31/2020,C&M-GMS Cost of Drugs -Prescribing,LOCAL ENHANCED SERVICES,UPPERTHORPE MEDICAL CENTRE,32473650,"1,814.53",LOCAL ENHANCED SERVICES,S6 3FT
Department of Health,NHS Sheffield CCG,5/31/2020,C&M-GMS DES Minor Surgery,PRC DELEGATED CO-COMMISSIONING,UPPERTHORPE MEDICAL CENTRE,32473650,"1,390.00",PRC DELEGATED CO-COMMISSIONING,S6 3FT
Department of Health,NHS Sheffield CCG,5/31/2020,C&M-GMS Global Sum,PRC DELEGATED CO-COMMISSIONING,UPPERTHORPE MEDICAL CENTRE,32473650,"89,134.49",PRC DELEGATED CO-COMMISSIONING,S6 3FT
Department of Health,NHS Sheffield CCG,5/31/2020,C&M-GMS PCN DES Participation,PRC DELEGATED CO-COMMISSIONING,UPPERTHORPE MEDICAL CENTRE,32473650,"1,742.53",PRC DELEGATED CO-COMMISSIONING,S6 3FT
Department of Health,NHS Sheffield CCG,5/31/2020,C&M-GMS PCO Other,PRC DELEGATED CO-COMMISSIONING,UPPERTHORPE MEDICAL CENTRE,32473650,"7,378.00",PRC DELEGATED CO-COMMISSIONING,S6 3FT
Department of Health,NHS Sheffield CCG,5/31/2020,C&M-GMS Prem Notional Rent,PRC DELEGATED CO-COMMISSIONING,UPPERTHORPE MEDICAL CENTRE,32473650,"2,547.83",PRC DELEGATED CO-COMMISSIONING,S6 3FT
Department of Health,NHS Sheffield CCG,5/31/2020,C&M-GMS Prem Rates,PRC DELEGATED CO-COMMISSIONING,UPPERTHORPE MEDICAL CENTRE,32473650,"2,620.00",PRC DELEGATED CO-COMMISSIONING,S6 3FT
Department of Health,NHS Sheffield CCG,5/31/2020,C&M-GMS Prem Water Rates,PRC DELEGATED CO-COMMISSIONING,UPPERTHORPE MEDICAL CENTRE,32473650,163.28,PRC DELEGATED CO-COMMISSIONING,S6 3FT
Department of Health,NHS Sheffield CCG,5/31/2020,C&M-GMS Prof Fees Prescribing,PRC DELEGATED CO-COMMISSIONING,UPPERTHORPE MEDICAL CENTRE,32473650,177.93,PRC DELEGATED CO-COMMISSIONING,S6 3FT
Department of Health,NHS Sheffield CCG,5/31/2020,C&M-GMS QOF Aspiration,PRC DELEGATED CO-COMMISSIONING,UPPERTHORPE MEDICAL CENTRE,32473650,"9,072.83",PRC DELEGATED CO-COMMISSIONING,S6 3FT
Department of Health,NHS Sheffield CCG,5/31/2020,C&M-PMS Contract Value,PRC DELEGATED CO-COMMISSIONING,UPWELL STREET SURGERY,32288981,"36,353.83",PRC DELEGATED CO-COMMISSIONING,S4 8AN
Department of Health,NHS Sheffield CCG,5/31/2020,C&M-PMS PCN DES Participation,PRC DELEGATED CO-COMMISSIONING,UPWELL STREET SURGERY,32288981,687.31,PRC DELEGATED CO-COMMISSIONING,S4 8AN
Department of Health,NHS Sheffield CCG,5/31/2020,C&M-PMS PCO Locum Sickness,PRC DELEGATED CO-COMMISSIONING,UPWELL STREET SURGERY,32288981,"8,625.06",PRC DELEGATED CO-COMMISSIONING,S4 8AN
Department of Health,NHS Sheffield CCG,5/31/2020,C&M-PMS Prem Notional Rent,PRC DELEGATED CO-COMMISSIONING,UPWELL STREET SURGERY,32288981,"8,137.50",PRC DELEGATED CO-COMMISSIONING,S4 8AN
Department of Health,NHS Sheffield CCG,5/31/2020,C&M-PMS Prem Rates,PRC DELEGATED CO-COMMISSIONING,UPWELL STREET SURGERY,32288981,"2,722.25",PRC DELEGATED CO-COMMISSIONING,S4 8AN
Department of Health,NHS Sheffield CCG,5/31/2020,C&M-PMS Prem Water Rates,PRC DELEGATED CO-COMMISSIONING,UPWELL STREET SURGERY,32288981,227.25,PRC DELEGATED CO-COMMISSIONING,S4 8AN
Department of Health,NHS Sheffield CCG,5/31/2020,C&M-PMS QOF Aspiration,PRC DELEGATED CO-COMMISSIONING,UPWELL STREET SURGERY,32288981,"4,056.38",PRC DELEGATED CO-COMMISSIONING,S4 8AN
Department of Health,NHS Sheffield CCG,5/31/2020,C&M-PCN DES Support Payment,PRC DELEGATED CO-COMMISSIONING,VALLEY MEDICAL CENTRE,32314234,"1,952.89",PRC DELEGATED CO-COMMISSIONING,S36 1BX
Department of Health,NHS Sheffield CCG,5/31/2020,C&M-PMS Contract Value,PRC DELEGATED CO-COMMISSIONING,VALLEY MEDICAL CENTRE,32314234,"78,985.17",PRC DELEGATED CO-COMMISSIONING,S36 1BX
Department of Health,NHS Sheffield CCG,5/31/2020,C&M-PMS DES Extended Hours Access,PRC DELEGATED CO-COMMISSIONING,VALLEY MEDICAL CENTRE,32314234,"2,507.53",PRC DELEGATED CO-COMMISSIONING,S36 1BX
Department of Health,NHS Sheffield CCG,5/31/2020,C&M-PMS GP Statutory Levy,PRC DELEGATED CO-COMMISSIONING,VALLEY MEDICAL CENTRE,32314234,0.28,PRC DELEGATED CO-COMMISSIONING,S36 1BX
Department of Health,NHS Sheffield CCG,5/31/2020,C&M-PMS PCN DES Clinical Director,PRC DELEGATED CO-COMMISSIONING,VALLEY MEDICAL CENTRE,32314234,"1,248.58",PRC DELEGATED CO-COMMISSIONING,S36 1BX
Department of Health,NHS Sheffield CCG,5/31/2020,C&M-PMS PCN DES PCN support,LOCAL ENHANCED SERVICES,VALLEY MEDICAL CENTRE,32314234,"2,594.00",LOCAL ENHANCED SERVICES,S36 1BX
Department of Health,NHS Sheffield CCG,5/31/2020,C&M-PMS PCN DES Participation,PRC DELEGATED CO-COMMISSIONING,VALLEY MEDICAL CENTRE,32314234,"1,502.00",PRC DELEGATED CO-COMMISSIONING,S36 1BX
Department of Health,NHS Sheffield CCG,5/31/2020,C&M-PMS PCO Other,PRC DELEGATED CO-COMMISSIONING,VALLEY MEDICAL CENTRE,32314234,"5,983.00",PRC DELEGATED CO-COMMISSIONING,S36 1BX
Department of Health,NHS Sheffield CCG,5/31/2020,C&M-PMS Prem Rates,PRC DELEGATED CO-COMMISSIONING,VALLEY MEDICAL CENTRE,32314234,"1,784.00",PRC DELEGATED CO-COMMISSIONING,S36 1BX
Department of Health,NHS Sheffield CCG,5/31/2020,C&M-PMS Prem Water Rates,PRC DELEGATED CO-COMMISSIONING,VALLEY MEDICAL CENTRE,32314234,309.40,PRC DELEGATED CO-COMMISSIONING,S36 1BX
Department of Health,NHS Sheffield CCG,5/31/2020,C&M-PMS QOF Aspiration,PRC DELEGATED CO-COMMISSIONING,VALLEY MEDICAL CENTRE,32314234,"8,453.91",PRC DELEGATED CO-COMMISSIONING,S36 1BX
Department of Health,NHS Sheffield CCG,5/31/2020,Cont Care-Physical Disab (<65),CHC ADULT FULLY FUNDED,VALORUM CARE LTD,32426491,"69,233.63",CHC SCHEDULE MAY 2020 - Valorum Care Limited (Mickley Hall),LS19 7RW
Department of Health,NHS Sheffield CCG,5/31/2020,C&M-GMS Cost of Drugs -Prescribing,LOCAL ENHANCED SERVICES,WALKLEY HOUSE MEDICAL CENTRE,32473656,"1,575.80",LOCAL ENHANCED SERVICES,S6 3TN
Department of Health,NHS Sheffield CCG,5/31/2020,C&M-GMS DES Minor Surgery,PRC DELEGATED CO-COMMISSIONING,WALKLEY HOUSE MEDICAL CENTRE,32473656,"1,525.00",PRC DELEGATED CO-COMMISSIONING,S6 3TN
Department of Health,NHS Sheffield CCG,5/31/2020,C&M-GMS Global Sum,PRC DELEGATED CO-COMMISSIONING,WALKLEY HOUSE MEDICAL CENTRE,32473656,"89,977.59",PRC DELEGATED CO-COMMISSIONING,S6 3TN
Department of Health,NHS Sheffield CCG,5/31/2020,C&M-GMS PCN DES Participation,PRC DELEGATED CO-COMMISSIONING,WALKLEY HOUSE MEDICAL CENTRE,32473656,"1,759.55",PRC DELEGATED CO-COMMISSIONING,S6 3TN
Department of Health,NHS Sheffield CCG,5/31/2020,C&M-GMS Prem Notional Rent,PRC DELEGATED CO-COMMISSIONING,WALKLEY HOUSE MEDICAL CENTRE,32473656,"5,635.50",PRC DELEGATED CO-COMMISSIONING,S6 3TN
Department of Health,NHS Sheffield CCG,5/31/2020,C&M-GMS Prof Fees Prescribing,PRC DELEGATED CO-COMMISSIONING,WALKLEY HOUSE MEDICAL CENTRE,32473656,211.03,PRC DELEGATED CO-COMMISSIONING,S6 3TN
Department of Health,NHS Sheffield CCG,5/31/2020,C&M-GMS QOF Aspiration,PRC DELEGATED CO-COMMISSIONING,WALKLEY HOUSE MEDICAL CENTRE,32473656,"8,602.90",PRC DELEGATED CO-COMMISSIONING,S6 3TN
Department of Health,NHS Sheffield CCG,5/31/2020,C&M-GMS Cost of Drugs -Prescribing,LOCAL ENHANCED SERVICES,WHITE HOUSE SURGERY SHEFFIELD,32473654,884.79,LOCAL ENHANCED SERVICES,S2 1SL
Department of Health,NHS Sheffield CCG,5/31/2020,C&M-GMS DES Minor Surgery,PRC DELEGATED CO-COMMISSIONING,WHITE HOUSE SURGERY SHEFFIELD,32473654,500.00,PRC DELEGATED CO-COMMISSIONING,S2 1SL
Department of Health,NHS Sheffield CCG,5/31/2020,C&M-GMS Global Sum,PRC DELEGATED CO-COMMISSIONING,WHITE HOUSE SURGERY SHEFFIELD,32473654,"54,365.99",PRC DELEGATED CO-COMMISSIONING,S2 1SL
Department of Health,NHS Sheffield CCG,5/31/2020,C&M-GMS PCN DES Participation,PRC DELEGATED CO-COMMISSIONING,WHITE HOUSE SURGERY SHEFFIELD,32473654,"1,055.34",PRC DELEGATED CO-COMMISSIONING,S2 1SL
Department of Health,NHS Sheffield CCG,5/31/2020,C&M-GMS PCO Other,PRC DELEGATED CO-COMMISSIONING,WHITE HOUSE SURGERY SHEFFIELD,32473654,"4,293.00",PRC DELEGATED CO-COMMISSIONING,S2 1SL
Department of Health,NHS Sheffield CCG,5/31/2020,C&M-GMS Prem Notional Rent,PRC DELEGATED CO-COMMISSIONING,WHITE HOUSE SURGERY SHEFFIELD,32473654,"9,412.50",PRC DELEGATED CO-COMMISSIONING,S2 1SL
Department of Health,NHS Sheffield CCG,5/31/2020,C&M-GMS Prem Rates,PRC DELEGATED CO-COMMISSIONING,WHITE HOUSE SURGERY SHEFFIELD,32473654,"2,483.00",PRC DELEGATED CO-COMMISSIONING,S2 1SL
Department of Health,NHS Sheffield CCG,5/31/2020,C&M-GMS Prof Fees Prescribing,PRC DELEGATED CO-COMMISSIONING,WHITE HOUSE SURGERY SHEFFIELD,32473654,134.48,PRC DELEGATED CO-COMMISSIONING,S2 1SL
Department of Health,NHS Sheffield CCG,5/31/2020,C&M-GMS QOF Aspiration,PRC DELEGATED CO-COMMISSIONING,WHITE HOUSE SURGERY SHEFFIELD,32473654,"6,233.52",PRC DELEGATED CO-COMMISSIONING,S2 1SL
Department of Health,NHS Sheffield CCG,5/31/2020,Cont Care-Physical Disab (<65),CHC ADULT FULLY FUNDED,WILLOWBECK HEALTH CARE LTD,32426385,"149,362.63",CHC SCHEDULE MAY 2020 - Willowbeck Health Care Ltd (Exemplar HC),S4 8AR
Department of Health,NHS Sheffield CCG,5/31/2020,C&M-PMS Contract Value,PRC DELEGATED CO-COMMISSIONING,WINCOBANK MEDICAL CENTRE,32288986,"62,603.83",PRC DELEGATED CO-COMMISSIONING,S9 1DJ
Department of Health,NHS Sheffield CCG,5/31/2020,C&M-PMS GP Statutory Levy,PRC DELEGATED CO-COMMISSIONING,WINCOBANK MEDICAL CENTRE,32288986,0.46,PRC DELEGATED CO-COMMISSIONING,S9 1DJ
Department of Health,NHS Sheffield CCG,5/31/2020,C&M-PMS PCN DES Participation,PRC DELEGATED CO-COMMISSIONING,WINCOBANK MEDICAL CENTRE,32288986,"1,191.31",PRC DELEGATED CO-COMMISSIONING,S9 1DJ
Department of Health,NHS Sheffield CCG,5/31/2020,C&M-PMS Prem Healthcentre Rent,PRC DELEGATED CO-COMMISSIONING,WINCOBANK MEDICAL CENTRE,32288986,"45,121.79",PRC DELEGATED CO-COMMISSIONING,S9 1DJ
Department of Health,NHS Sheffield CCG,5/31/2020,C&M-PMS QOF Aspiration,PRC DELEGATED CO-COMMISSIONING,WINCOBANK MEDICAL CENTRE,32288986,"6,283.36",PRC DELEGATED CO-COMMISSIONING,S9 1DJ
Department of Health,NHS Sheffield CCG,5/31/2020,C&M-PMS Contract Value,PRC DELEGATED CO-COMMISSIONING,WOODHOUSE HEALTH CENTRE,32288984,"100,836.67",PRC DELEGATED CO-COMMISSIONING,S13 7LY
Department of Health,NHS Sheffield CCG,5/31/2020,C&M-PMS GP Statutory Levy,PRC DELEGATED CO-COMMISSIONING,WOODHOUSE HEALTH CENTRE,32288984,2.70,PRC DELEGATED CO-COMMISSIONING,S13 7LY
Department of Health,NHS Sheffield CCG,5/31/2020,C&M-PMS PCN DES Participation,PRC DELEGATED CO-COMMISSIONING,WOODHOUSE HEALTH CENTRE,32288984,"1,913.91",PRC DELEGATED CO-COMMISSIONING,S13 7LY
Department of Health,NHS Sheffield CCG,5/31/2020,C&M-PMS PCO Other,PRC DELEGATED CO-COMMISSIONING,WOODHOUSE HEALTH CENTRE,32288984,"1,502.60",PRC DELEGATED CO-COMMISSIONING,S13 7LY
Department of Health,NHS Sheffield CCG,5/31/2020,C&M-PMS Prem Notional Rent,PRC DELEGATED CO-COMMISSIONING,WOODHOUSE HEALTH CENTRE,32288984,"6,338.58",PRC DELEGATED CO-COMMISSIONING,S13 7LY
Department of Health,NHS Sheffield CCG,5/31/2020,C&M-PMS Prem Water Rates,PRC DELEGATED CO-COMMISSIONING,WOODHOUSE HEALTH CENTRE,32288984,598.43,PRC DELEGATED CO-COMMISSIONING,S13 7LY
Department of Health,NHS Sheffield CCG,5/31/2020,C&M-PMS QOF Aspiration,PRC DELEGATED CO-COMMISSIONING,WOODHOUSE HEALTH CENTRE,32288984,"13,912.30",PRC DELEGATED CO-COMMISSIONING,S13 7LY
Department of Health,NHS Sheffield CCG,5/31/2020,C&M-PMS Contract Value,PRC DELEGATED CO-COMMISSIONING,WOODSEATS MEDICAL CENTRE,32297369,"78,663.50",PRC DELEGATED CO-COMMISSIONING,S8 0SH
Department of Health,NHS Sheffield CCG,5/31/2020,C&M-PMS PCN DES Participation,PRC DELEGATED CO-COMMISSIONING,WOODSEATS MEDICAL CENTRE,32297369,"1,504.80",PRC DELEGATED CO-COMMISSIONING,S8 0SH
Department of Health,NHS Sheffield CCG,5/31/2020,C&M-PMS PCO Locum Sickness,PRC DELEGATED CO-COMMISSIONING,WOODSEATS MEDICAL CENTRE,32297369,"12,279.41",PRC DELEGATED CO-COMMISSIONING,S8 0SH
Department of Health,NHS Sheffield CCG,5/31/2020,C&M-PMS PCO Other,PRC DELEGATED CO-COMMISSIONING,WOODSEATS MEDICAL CENTRE,32297369,"1,291.40",PRC DELEGATED CO-COMMISSIONING,S8 0SH
Department of Health,NHS Sheffield CCG,5/31/2020,C&M-PMS Prem Notional Rent,PRC DELEGATED CO-COMMISSIONING,WOODSEATS MEDICAL CENTRE,32297369,"11,666.67",PRC DELEGATED CO-COMMISSIONING,S8 0SH
Department of Health,NHS Sheffield CCG,5/31/2020,C&M-PMS Prem Rates,PRC DELEGATED CO-COMMISSIONING,WOODSEATS MEDICAL CENTRE,32297369,"3,149.00",PRC DELEGATED CO-COMMISSIONING,S8 0SH
Department of Health,NHS Sheffield CCG,5/31/2020,C&M-PMS QOF Aspiration,PRC DELEGATED CO-COMMISSIONING,WOODSEATS MEDICAL CENTRE,32297369,"8,242.64",PRC DELEGATED CO-COMMISSIONING,S8 0SH
Department of Health,NHS Sheffield CCG,5/31/2020,Hcare Srv Rec Fdtn Trust-Non Contract,NCAS/OATS,YORK TEACHING HOSPITAL NHS FOUNDATION TRUST,32303340,"29,013.29",NCAS/OATS,YO30 4RY
Department of Health,NHS Sheffield CCG,5/31/2020,Hcare Srv Rec NHS Trust-Contract Baseline,AMBULANCE SERVICES,YORKSHIRE AMBULANCE SERVICE NHS TRUST,32303342,"2,402,179.62",AMBULANCE SERVICES,WF2 0XQ
